Workbook

Sheet ورقة1
A1: إدارة | C1: الشهداء التعليمية | D1: بيانات العاملين
A2: مدرسة | C2: الادارة | D2: الاستمارة | L2: صمم هذا البرنامج اخوكم فى الله أ/محمد محمد عبد الله عبد الصمد رئيس قسم التدريب بادارة الشهداء نسألكم الدعاء بظاهرالغيب
A3: شهر | C3: مارس 2018 | D3: خلف الاستمارة
A4: مدير المدرسة | C4: محمد | D4: فردية
A5: سنة | C5: 2018 | D5: خلف فردية
A6: مسئول المرتبات
L7: يجب توزيع عدد العاملين على مجموعة من الكشوف بواقع 25 عامل للكشف على أن يكون كشف التجميعه من ضمن الكشوف فمثلا 50 عامل توزع 25كشف 1 و23 للكشف 2 وعدد 2عامل لكشف التجميعة ،خانة التوقيع بالاستلام اكتب فيها رقم العامل الموجودفى البيانات ، تأكد من عدم وجود بيانات فى الكشوف الغير مستعمله وذلكبالذهاب للكشف والضغطعلى مفتاحمسح البيانات فى يسار الكشف
K9: aya6672

Sheet العاملين
H1: استحقاقات | AP1: استقطاعات | BL1: الخلايا الحمراء لا تدخل بها بيانات فهى تحسب نفسها
A2: م | B2: الاســــــــــــم | C2: نقابي | D2: نقابى /غيرنقابى | E2: الحالة الاجتماعية | F2: اكتب 1 للحاصل على ال 33% | H2: الوظيفة | I2: المرتب الذى يحسب عليه الكادر | J2: المرتب الاساسي | K2: علاوة 2012 | L2: علاوة 2013 | M2: علاوة 2014 | N2: علاةة 2015 | O2: علاوة 2016 | P2: ع اجتماعية | Q2: ع اجتماعيةاضافية | R2: أعباء وظيفية | S2: بدل نظارة | T2: حافز مدير | U2: بدل تفرغ | V2: بدل تجاريين | W2: بدل عدوي | X2: حافز ماجستير | Y2: حافزدكتوراة | Z2: بدل تسكين | AA2: الحدالادنى | AB2: اكتب ما تشاء | AC2: اكتب ما تشاء | AD2: اكتب ما تشاء | AE2: اكتب ما تشاء | AF2: اكتب ما تشاء | AG2: اكتب ما تشاء | AH2: اكتب ما تشاء | AI2: اكتب ما تشاء | AJ2: نقابة اجتماعية | AK2: نقابة تطبيقين | AL2: رابطه | AM2: ضريبة الدخل | AN2: دمغة عادية | AO2: دمغة نسبيه | AP2: أرباب عهد | AQ2: خدمات عمالية | AR2: نقابة بحث علمى 5% | AS2: اقساط بنوك | AX2: نصف العلاوة | AY2: ايرادات تربيةوتعليم | AZ2: انقطاع | BA2: للحالات خاصة فقط | BL2: منحة | BM2: بدل معلم اضافى | BN2: بدل معلم | BO2: بدل اعتماد | BP2: حافز 25 % | BQ2: حافز أداء | BR2: الـ91.5 | BS2: ال50% | BT2: ال 33% | BU2: الحد الادنى | CE2: الوظيفة
G3: الرقم القومى | AS3: ناصر | AT3: القاهرة | AU3: الاهلى | AV3: اكتب ما تشاء | AW3: اكتب اسم البنك | BA3: زمالة | BB3: جماعى | BC3: نقابة | BD3: نادى المحافطة | BE3: نادى الادارة | CH3: حافز 25% | CI3: حافزأداء
A4: 1 | B4: محمد1 | C4: =IF(D4="نقابى",1,IF(D4="حالة خاصة",2,0)) -> 1 | D4: نقابى | E4: متزوج+2 | F4: 0 | H4: معلم | I4: 666.98 | J4: 16650 | L4: 62.23 | M4: 62.73 | N4: 66.69 | P4: 4 | Q4: =IF(E4="متزوج",2,IF(E4="متزوج+1",4,IF(E4="متزوج+2",6,IF(E4="متزوجة",2,0)))) -> 6 | R4: 350 | AA4: =BU4 -> 0 | AL4: 1 | AM4: 7.25 | AN4: 15.45 | AQ4: 0 | AW4: khwv | BA4: 5 | BB4: 5 | BC4: 5 | BD4: 5 | BE4: 5 | BL4: =IF(H4="معلم مساعد",10,IF(H4="معلم تعاقد",10,IF(H4="معلم",10,IF(H4="معلم أول",10,IF(H4="معلم أول أ",10,IF(H4="خبير",10,IF(H4="كبير",10,IF(H4="عامل تعاقد",0,"")))))))) -> 10 | BM4: =IF(H4="معلم مساعد",I4*0/100,IF(H4="معلم تعاقد",I4*0/100,IF(H4="معلم",I4*50/100,IF(H4="معلم أول",I4*50/100,IF(H4="معلم أول أ",I4*50/100,IF(H4="خبير",I4*50/100,IF(H4="كبير",I4*50/100,))))))) -> 333.49 | BN4: =IF(H4="معلم مساعد",I4*50/100,IF(H4="عامل تعاقد",I4*0/100,IF(H4="معلم",I4*50/100,IF(H4="معلم أول",I4*50/100,IF(H4="معلم أول أ",I4*50/100,IF(H4="خبير",I4*50/100,IF(H4="كبير",I4*50/100,))))))) -> 333.49 | BO4: =IF(H4="إدارى",I4*0,IF(H4="معلم مساعد",I4*0/100,IF(H4="معلم",I4*50/100,IF(H4="معلم أول",I4*75/100,IF(H4="معلم أول أ",I4*100/100,IF(H4="خبير",I4*125/100,IF(H4="كبير",I4*150/100,))))))) -> 333.49 | BP4: =INT(IF(H4="عامل تعاقد",I4*25/100,IF(H4="معلم مساعد",I4*25/100,IF(H4="معلم",I4*25/100,IF(H4="معلم أول",I4*25/100,IF(H4="معلم أول أ",I4*25/100,IF(H4="خبير",I4*25/100,IF(H4="كبير",I4*25/100,)))))))) -> 166 | BQ4: =INT(IF(H4="إدارى",J4*0/100,IF(H4="معلم مساعد",I4*125/100,IF(H4="معلم",I4*75/100,IF(H4="معلم أول",I4*50/100,IF(H4="معلم أول أ",I4*25/100,IF(H4="خبير",I4*25/100,IF(H4="كبير",I4*25/100,)))))))) -> 500 | BR4: =INT(IF(H4="عامل تعاقد",I4*0.9166,IF(H4="معلم تعاقد",I4*0.9166,0))) -> 0 | BS4: =INT(IF(H4="عامل تعاقد",I4*0.5,IF(H4="معلم تعاقد",I4*0.5,0))) -> 0 | BT4: =INT(IF(F4=1,I4*0.3333,0)) -> 0 | BU4: =IF(H4="عامل تعاقد",225,IF(H4="معلم تعاقد",300,0)) -> 0 | CB4: =IF($B4>0,(SUM(R4:AD4)-50),0) -> 300 | CC4: =IF(CB4<250,(CB4*0.006),IF(CB4<500,(CB4*0.0065),IF(CB4<1000,(CB4*0.007),IF(CB4<5000,(CB4*0.0075),IF(CB4>5000,(CB4*0.008)," " ))))) -> 1.95 | CD4: =CEILING($CC4,0.05) -> 1.95 | CE4: كبير | CI4: =#VALUE! -> 
A5: 2 | B5: محمد2 | C5: =IF(D5="نقابى",1,IF(D5="حالة خاصة",2,0)) -> 1 | D5: نقابى | E5: متزوجة | F5: 0 | H5: معلم أول أ | I5: 666.98 | J5: 1500 | L5: 48.43 | M5: 48.93 | N5: 52.05 | P5: 4 | Q5: =IF(E5="متزوج",2,IF(E5="متزوج+1",4,IF(E5="متزوج+2",6,IF(E5="متزوجة",2,0)))) -> 2 | T5: 0 | AA5: =BU5 -> 0 | AL5: 1 | AM5: 24.14 | AN5: 13.5 | BA5: =COLUMN() -> 53 | BL5: =IF(H5="معلم مساعد",10,IF(H5="معلم تعاقد",10,IF(H5="معلم",10,IF(H5="معلم أول",10,IF(H5="معلم أول أ",10,IF(H5="خبير",10,IF(H5="كبير",10,IF(H5="عامل تعاقد",0,"")))))))) -> 10 | BM5: =IF(H5="عقد مميز",I5*0/100,IF(H5="معلم تعاقد",I5*0/100,IF(H5="معلم",I5*50/100,IF(H5="معلم أول",I5*50/100,IF(H5="معلم أول أ",I5*50/100,IF(H5="خبير",I5*50/100,IF(H5="كبير",I5*50/100,))))))) -> 333.49 | BN5: =IF(H5="معلم مساعد",I5*50/100,IF(H5="عامل تعاقد",I5*0/100,IF(H5="معلم",I5*50/100,IF(H5="معلم أول",I5*50/100,IF(H5="معلم أول أ",I5*50/100,IF(H5="خبير",I5*50/100,IF(H5="كبير",I5*50/100,))))))) -> 333.49 | BO5: =IF(H5="إدارى",I5*0,IF(H5="معلم مساعد",I5*0/100,IF(H5="معلم",I5*50/100,IF(H5="معلم أول",I5*75/100,IF(H5="معلم أول أ",I5*100/100,IF(H5="خبير",I5*125/100,IF(H5="كبير",I5*150/100,))))))) -> 666.98 | BP5: 166 | BQ5: 166 | BR5: 0 | BS5: 0 | BT5: 0 | BU5: 0 | BX5: الحد الاقصي للمتغيرات فى الشهر | CA5: 2800 | CB5: -50 | CC5: -0.3 | CD5: =CEILING($CC5,0.05) -> -0.3 | CE5: خبير | CH5: =#VALUE! ->  | CI5: =#VALUE! -> 
A6: 3 | B6: محمد3 | C6: =IF(D6="نقابى",1,IF(D6="حالة خاصة",2,0)) -> 1 | D6: نقابى | E6: متزوج+2 | F6: 0 | H6: معلم | I6: 566.52 | J6: 938.62 | L6: 52.79 | M6: 53.29 | N6: 56.69 | P6: 4 | Q6: 6 | AA6: 0 | AL6: 1 | AM6: 26.73 | AN6: 14.95 | AY6: 4 | BL6: 10 | BM6: 283.26 | BN6: 283.26 | BO6: =IF(H6="إدارى",I6*0,IF(H6="معلم مساعد",I6*0/100,IF(H6="معلم",I6*50/100,IF(H6="معلم أول",I6*75/100,IF(H6="معلم أول أ",I6*100/100,IF(H6="خبير",I6*125/100,IF(H6="كبير",I6*150/100,))))))) -> 283.26 | BP6: 141 | BQ6: 424 | BR6: 0 | BS6: 0 | BT6: 0 | BU6: 0 | CB6: -50 | CC6: -0.3 | CD6: -0.3 | CE6: معلم أول أ | CH6: =#VALUE! ->  | CI6: =#VALUE! ->  | EM6: معلم
A7: 4 | B7: محمد4 | C7: =IF(D7="نقابى",1,IF(D7="حالة خاصة",2,0)) -> 1 | D7: نقابى | E7: متزوج+2 | F7: 0 | H7: معلم أول | I7: 511.02 | J7: 854.21 | L7: 47.01 | M7: 47.51 | N7: 51.1 | P7: 4 | Q7: 6 | AA7: 0 | AL7: 1 | AM7: 22.26 | AN7: 13.75 | BL7: 10 | BM7: 255.51 | BN7: 255.51 | BO7: 383.265 | BP7: 127 | BQ7: 255 | BR7: 0 | BS7: 0 | BT7: 0 | BU7: 0 | BX7: الحد الاقصي للمتغيرات فى السنة | CA7: =CA5*12 -> 33600 | CB7: -50 | CC7: -0.3 | CD7: -0.3 | CE7: معلم أول | CH7: =#VALUE! ->  | CI7: =#VALUE! ->  | CM7: نقابى | EM7: معلم اول
A8: 5 | B8: محمد5 | C8: =IF(D8="نقابى",1,IF(D8="حالة خاصة",2,0)) -> 1 | D8: نقابى | E8: متزوج+2 | F8: 0 | H8: معلم أول | I8: 536.12 | J8: 891.32 | L8: 49.89 | M8: 50.39 | N8: 53.61 | P8: 4 | Q8: 6 | AA8: 0 | AL8: 1 | AM8: 19.72 | AN8: 14.35 | BL8: 10 | BM8: 268.06 | BN8: 268.06 | BO8: 402.09 | BP8: 134 | BQ8: 268 | BR8: 0 | BS8: 0 | BT8: 0 | BU8: 0 | CB8: -50 | CC8: -0.3 | CD8: -0.3 | CE8: معلم | CH8: =#VALUE! ->  | CI8: =#VALUE! ->  | CM8: غير نقابى | EM8: معلم اول ا
A9: 6 | B9: محمد6 | C9: 1 | D9: نقابى | E9: متزوجة | F9: 0 | H9: معلم أول | I9: 559.4 | J9: 926.45 | L9: 52.08 | M9: 52.58 | N9: 55.94 | P9: 4 | Q9: 2 | AA9: 0 | AL9: 1 | AM9: 23.63 | AN9: 14.55 | BL9: 10 | BM9: 279.7 | BN9: 279.7 | BO9: 419.55 | BP9: 139 | BQ9: 279 | BR9: 0 | BS9: 0 | BT9: 0 | BU9: 0 | CB9: -50 | CC9: -0.3 | CD9: -0.3 | CE9: معلم مساعد | CH9: =#VALUE! ->  | CI9: =#VALUE! ->  | CM9: حالة خاصة | EM9: معلم خبير
A10: 7 | B10: محمد7 | C10: 1 | D10: نقابى | E10: متزوجة | F10: 0 | H10: معلم أول | I10: 512.18 | J10: 855.89 | L10: 47.12 | M10: 47.62 | N10: 51.21 | P10: 4 | Q10: 2 | AA10: 0 | AL10: 1 | AM10: 22.27 | AN10: 13.95 | BL10: 10 | BM10: 256.09 | BN10: 256.09 | BO10: 384.135 | BP10: 128 | BQ10: 256 | BR10: 0 | BS10: 0 | BT10: 0 | BU10: 0 | BX10: الحد الاقصي للمرتب الاساسي | CA10: 1370 | CB10: -50 | CC10: -0.3 | CD10: -0.3 | CE10: عامل تعاقد | CH10: =#VALUE! ->  | CI10: =#VALUE! ->  | EM10: معلم كبير
A11: 8 | B11: محمد8 | C11: 1 | D11: نقابى | E11: متزوجة | F11: 0 | H11: معلم أول | I11: 512.18 | J11: 855.89 | L11: 47.12 | M11: 47.62 | N11: 51.21 | P11: 4 | Q11: 2 | AA11: 0 | AL11: 1 | AM11: 22.27 | AN11: 13.95 | BL11: 10 | BM11: 256.09 | BN11: 256.09 | BO11: 384.135 | BP11: 128 | BQ11: 256 | BR11: 0 | BS11: 0 | BT11: 0 | BU11: 0 | BX11: الاحد الاقصي للجور المتغيرة | CA11: 2800 | CB11: -50 | CC11: -0.3 | CD11: -0.3 | CH11: =#VALUE! ->  | CI11: =#VALUE! ->  | EM11: عقد مميز
A12: 9 | B12: محمد9 | C12: 1 | D12: نقابى | E12: متزوجة | F12: 0 | H12: معلم أول | I12: 504.1 | J12: 843.7 | L12: 46.35 | M12: 46.85 | N12: 50.41 | P12: 4 | Q12: 2 | AA12: 0 | AL12: 1 | AM12: 22.01 | AN12: 13.4 | BL12: 10 | BM12: 252.05 | BN12: 252.05 | BO12: 378.075 | BP12: 126 | BQ12: 252 | BR12: 0 | BS12: 0 | BT12: 0 | BU12: 0 | CB12: -50 | CC12: -0.3 | CD12: -0.3 | CH12: =#VALUE! ->  | CI12: =#VALUE! -> 
A13: 10 | B13: محمد10 | C13: 1 | D13: نقابى | E13: متزوج+2 | F13: 0 | H13: معلم أول | I13: 546.57 | J13: 906.88 | L13: 50.87 | M13: 51.37 | N13: 54.64 | P13: 4 | Q13: 6 | AA13: 0 | AL13: 1 | AM13: 47.68 | AN13: 15.35 | BL13: 10 | BM13: 273.285 | BN13: 273.285 | BO13: 409.9275 | BP13: 136 | BQ13: 273 | BR13: 0 | BS13: 0 | BT13: 0 | BU13: 0 | CB13: -50 | CC13: -0.3 | CD13: -0.3 | CH13: =#VALUE! ->  | CI13: =#VALUE! -> 
A14: 11 | B14: محمد11 | C14: 1 | D14: نقابى | E14: متزوجة | F14: 0 | H14: معلم أول | I14: 504.9 | J14: 844.62 | L14: 46.43 | M14: 46.93 | N14: 50.49 | P14: 4 | Q14: 2 | AA14: 0 | AL14: 1 | AM14: 22.03 | AN14: 13.75 | BL14: 10 | BM14: 252.45 | BN14: 252.45 | BO14: 378.675 | BP14: 126 | BQ14: 252 | BR14: 0 | BS14: 0 | BT14: 0 | BU14: 0 | CB14: -50 | CC14: -0.3 | CD14: -0.3 | CH14: =#VALUE! ->  | CI14: =#VALUE! -> 
A15: 12 | B15: محمد12 | C15: 1 | D15: نقابى | E15: متزوج+2 | F15: 0 | H15: معلم أول | I15: 545.64 | J15: 906.5 | L15: 50.82 | M15: 51.32 | N15: 54.56 | P15: 4 | Q15: 6 | AA15: 0 | AL15: 1 | AN15: 12.5 | BL15: 10 | BM15: 272.82 | BN15: 272.82 | BO15: 409.23 | BP15: 136 | BQ15: 272 | BR15: 0 | BS15: 0 | BT15: 0 | BU15: 0 | CB15: -50 | CC15: -0.3 | CD15: -0.3 | CH15: =#VALUE! ->  | CI15: =#VALUE! -> 
A16: 13 | B16: محمد13 | C16: 1 | D16: نقابى | E16: متزوجة | F16: 0 | H16: معلم أول | I16: 499.36 | J16: 836.86 | L16: 45.91 | M16: 46.41 | N16: 49.93 | P16: 4 | Q16: 2 | AA16: 0 | AL16: 1 | AM16: 21.73 | AN16: 13.85 | BL16: 10 | BM16: 249.68 | BN16: 249.68 | BO16: 374.52 | BP16: 124 | BQ16: 249 | BR16: 0 | BS16: 0 | BT16: 0 | BU16: 0 | CB16: -50 | CC16: -0.3 | CD16: -0.3 | CH16: =#VALUE! ->  | CI16: =#VALUE! -> 
A17: 14 | B17: محمد14 | C17: 1 | D17: نقابى | E17: متزوجة | F17: 0 | H17: معلم أول | I17: 530.54 | J17: 883.67 | L17: 48.85 | M17: 49.35 | N17: 53.05 | P17: 4 | Q17: 2 | AA17: 0 | AL17: 1 | AM17: 22.76 | AN17: 14.95 | BL17: 10 | BM17: 265.27 | BN17: 265.27 | BO17: 397.905 | BP17: 132 | BQ17: 265 | BR17: 0 | BS17: 0 | BT17: 0 | BU17: 0 | CB17: -50 | CC17: -0.3 | CD17: -0.3 | CH17: =#VALUE! ->  | CI17: =#VALUE! -> 
A18: 15 | B18: محمد15 | C18: 1 | D18: نقابى | E18: متزوج+2 | F18: 0 | H18: معلم أول | I18: 537.54 | J18: 894.13 | L18: 49.51 | M18: 50.01 | N18: 53.75 | P18: 4 | Q18: 6 | AA18: 0 | AL18: 1 | AM18: 22.64 | AN18: 15 | BL18: 10 | BM18: 268.77 | BN18: 268.77 | BO18: 403.155 | BP18: 134 | BQ18: 268 | BR18: 0 | BS18: 0 | BT18: 0 | BU18: 0 | CB18: -50 | CC18: -0.3 | CD18: -0.3 | CH18: =#VALUE! ->  | CI18: =#VALUE! -> 
A19: 16 | B19: محمد16 | C19: 1 | D19: نقابى | E19: متزوجة | F19: 0 | H19: معلم أول | I19: 395.16 | J19: 705.15 | L19: 36.6 | M19: 37.1 | N19: 39.51 | P19: 4 | Q19: 2 | AA19: 0 | AL19: 1 | AM19: 14.76 | AN19: 9.65 | BL19: 10 | BM19: 197.58 | BN19: 197.58 | BO19: 296.37 | BP19: 98 | BQ19: 197 | BR19: 0 | BS19: 0 | BT19: 0 | BU19: 0 | CB19: -50 | CC19: -0.3 | CD19: -0.3 | CH19: =#VALUE! ->  | CI19: =#VALUE! -> 
A20: 17 | B20: محمد17 | C20: 1 | D20: نقابى | E20: متزوجة | F20: 0 | H20: معلم أول | I20: 502.5 | J20: 840.34 | L20: 46.73 | M20: 47.23 | N20: 50.25 | P20: 4 | Q20: 2 | AA20: 0 | AL20: 1 | AM20: 25.86 | AN20: 13.45 | BL20: 10 | BM20: 251.25 | BN20: 251.25 | BO20: 376.875 | BP20: 125 | BQ20: 251 | BR20: 0 | BS20: 0 | BT20: 0 | BU20: 0 | CB20: -50 | CC20: -0.3 | CD20: -0.3 | CH20: =#VALUE! ->  | CI20: =#VALUE! -> 
A21: 18 | B21: محمد18 | C21: 1 | D21: نقابى | E21: متزوجة | F21: 0 | H21: معلم أول | I21: 510.68 | J21: 854.27 | L21: 46.96 | M21: 47.46 | N21: 51.06 | P21: 4 | Q21: 2 | AA21: 0 | AL21: 1 | AM21: 22.28 | AN21: 13.85 | BL21: 10 | BM21: 255.34 | BN21: 255.34 | BO21: 383.01 | BP21: 127 | BQ21: 255 | BR21: 0 | BS21: 0 | BT21: 0 | BU21: 0 | CB21: -50 | CC21: -0.3 | CD21: -0.3 | CH21: =#VALUE! ->  | CI21: =#VALUE! -> 
A22: 19 | B22: محمد19 | C22: 1 | D22: نقابى | E22: متزوجة | F22: 0 | H22: معلم أول | I22: 351.96 | J22: 637.82 | L22: 32.54 | M22: 33.04 | N22: 35.19 | P22: 4 | Q22: 2 | AA22: 0 | AL22: 1 | AM22: 10.81 | AN22: 12 | BL22: 10 | BM22: 175.98 | BN22: 175.98 | BO22: 263.97 | BP22: 87 | BQ22: 175 | BR22: 0 | BS22: 0 | BT22: 0 | BU22: 0 | CB22: -50 | CC22: -0.3 | CD22: -0.3 | CH22: =#VALUE! ->  | CI22: =#VALUE! -> 
A23: 20 | B23: محمد20 | C23: 1 | D23: نقابى | E23: متزوج+1 | F23: 0 | H23: معلم أول | I23: 351.96 | J23: 652.6 | L23: 32.54 | M23: 33.04 | N23: 35.19 | P23: 4 | Q23: 4 | AA23: 0 | AL23: 1 | AM23: 10.65 | AN23: 11.15 | BL23: 10 | BM23: 175.98 | BN23: 175.98 | BO23: 263.97 | BP23: 87 | BQ23: 175 | BR23: 0 | BS23: 0 | BT23: 0 | BU23: 0 | CB23: -50 | CC23: -0.3 | CD23: -0.3 | CH23: =#VALUE! ->  | CI23: =#VALUE! -> 
A24: 21 | B24: محمد21 | C24: 1 | D24: نقابى | E24: متزوجة | F24: 0 | H24: معلم أول | I24: 356.96 | J24: 652.6 | L24: 32.54 | M24: 33.04 | N24: 35.19 | P24: 4 | Q24: 2 | AA24: 0 | AL24: 1 | AM24: 11.55 | AN24: 11.15 | BL24: 10 | BM24: 178.48 | BN24: 178.48 | BO24: 267.72 | BP24: 89 | BQ24: 178 | BR24: 0 | BS24: 0 | BT24: 0 | BU24: 0 | CB24: -50 | CC24: -0.3 | CD24: -0.3 | CH24: =#VALUE! ->  | CI24: =#VALUE! -> 
A25: 22 | B25: محمد22 | C25: 1 | D25: نقابى | F25: 0 | H25: معلم أول | I25: 257.82 | J25: 534.28 | L25: 24.5 | M25: 24.9 | N25: 25.78 | P25: 4 | Q25: 0 | AA25: 0 | AL25: 1 | AN25: 9.25 | BL25: 10 | BM25: 128.91 | BN25: 128.91 | BO25: 193.365 | BP25: 64 | BQ25: 128 | BR25: 0 | BS25: 0 | BT25: 0 | BU25: 0 | CB25: -50 | CC25: -0.3 | CD25: -0.3 | CH25: =#VALUE! ->  | CI25: =#VALUE! -> 
A26: 23 | B26: محمد23 | C26: 1 | D26: نقابى | E26: متزوج+2 | F26: 0 | H26: معلم أول | I26: 246 | J26: 460.2 | L26: 7.2 | M26: 4.8 | N26: 4.8 | P26: 4 | Q26: 6 | AA26: 0 | AL26: 1 | AN26: 6 | BL26: 10 | BM26: 123 | BN26: 123 | BO26: 184.5 | BP26: 61 | BQ26: 123 | BR26: 0 | BS26: 0 | BT26: 0 | BU26: 0 | CB26: -50 | CC26: -0.3 | CD26: -0.3 | CH26: =#VALUE! ->  | CI26: =#VALUE! -> 
A27: 24 | B27: محمد24 | C27: 1 | D27: نقابى | E27: متزوجة | F27: 0 | H27: معلم أول | I27: 246 | J27: 460.2 | L27: 7.2 | M27: 4.8 | N27: 4.8 | P27: 4 | Q27: 2 | AA27: 0 | AL27: 1 | AN27: 6 | BL27: 10 | BM27: 123 | BN27: 123 | BO27: 184.5 | BP27: 61 | BQ27: 123 | BR27: 0 | BS27: 0 | BT27: 0 | BU27: 0 | CB27: -50 | CC27: -0.3 | CD27: -0.3 | CH27: =#VALUE! ->  | CI27: =#VALUE! -> 
A28: 25 | B28: محمد25 | C28: 1 | D28: نقابى | E28: متزوجة | F28: 0 | H28: معلم أول | I28: 246 | J28: 460.2 | L28: 7.2 | M28: 4.8 | N28: 4.8 | P28: 4 | Q28: 2 | AA28: 0 | AL28: 1 | AN28: 6 | BL28: 10 | BM28: 123 | BN28: 123 | BO28: 184.5 | BP28: 61 | BQ28: 123 | BR28: 0 | BS28: 0 | BT28: 0 | BU28: 0 | CB28: -50 | CC28: -0.3 | CD28: -0.3 | CH28: =#VALUE! ->  | CI28: =#VALUE! -> 
A29: 26 | B29: محمد26 | C29: 1 | D29: نقابى | E29: متزوجة | F29: 0 | H29: معلم أول | I29: 246 | J29: 460.2 | L29: 7.2 | M29: 4.8 | N29: 4.8 | P29: 4 | Q29: 2 | AA29: 0 | AL29: 1 | AN29: 6 | BL29: 10 | BM29: 123 | BN29: 123 | BO29: 184.5 | BP29: 61 | BQ29: 123 | BR29: 0 | BS29: 0 | BT29: 0 | BU29: 0 | CB29: -50 | CC29: -0.3 | CD29: -0.3 | CH29: =#VALUE! ->  | CI29: =#VALUE! -> 
A30: 27 | B30: محمد27 | C30: 1 | D30: نقابى | F30: 0 | I30: 0 | J30: 0 | Q30: 0 | AA30: 0 | BM30: 0 | BN30: 0 | BO30: 0 | BP30: 0 | BQ30: 0 | BR30: 0 | BS30: 0 | BT30: 0 | BU30: 0 | CB30: -50 | CC30: -0.3 | CD30: -0.3 | CH30: =#VALUE! ->  | CI30: =#VALUE! -> 
A31: 28 | B31: محمد28 | C31: 1 | D31: نقابى | E31: متزوج+2 | F31: 0 | H31: خبير | I31: 638.55 | J31: 1056.59 | L31: 59.54 | M31: 60.04 | N31: 63.85 | P31: 4 | Q31: 6 | AA31: 0 | AL31: 1 | AM31: 51.65 | AN31: 15 | BL31: 10 | BM31: 319.275 | BN31: 319.275 | BO31: 798.1875 | BP31: 159 | BQ31: 159 | BR31: 0 | BS31: 0 | BT31: 0 | BU31: 0 | CB31: -50 | CC31: -0.3 | CD31: -0.3 | CH31: =#VALUE! ->  | CI31: =#VALUE! -> 
A32: 29 | B32: محمد29 | C32: 1 | D32: نقابى | E32: متزوج+2 | F32: 0 | H32: خبير | I32: 546.57 | J32: 906.88 | L32: 50.87 | M32: 51.37 | N32: 54.64 | P32: 4 | Q32: 6 | AA32: 0 | AL32: 1 | AM32: 47.68 | AN32: 15.35 | BL32: 10 | BM32: 273.285 | BN32: 273.285 | BO32: 683.2125 | BP32: 136 | BQ32: 136 | BR32: 0 | BS32: 0 | BT32: 0 | BU32: 0 | CB32: -50 | CC32: -0.3 | CD32: -0.3 | CH32: =#VALUE! ->  | CI32: =#VALUE! -> 
A33: 30 | B33: محمد30 | C33: 1 | D33: نقابى | E33: متزوج+2 | F33: 0 | H33: خبير | I33: 574.8 | J33: 951.55 | L33: 53.54 | M33: 54.04 | N33: 57.48 | P33: 4 | Q33: 6 | AA33: 0 | AL33: 1 | AN33: 14.95 | BL33: 10 | BM33: 287.4 | BN33: 287.4 | BO33: 718.5 | BP33: 143 | BQ33: 143 | BR33: 0 | BS33: 0 | BT33: 0 | BU33: 0 | CB33: -50 | CC33: -0.3 | CD33: -0.3 | CH33: =#VALUE! ->  | CI33: =#VALUE! -> 
A34: 31 | B34: محمد31 | C34: 1 | D34: نقابى | E34: متزوج+2 | F34: 0 | H34: خبير | I34: 537.56 | J34: 892.61 | L34: 50.03 | M34: 50.53 | N34: 53.75 | P34: 4 | Q34: 6 | AA34: 0 | AL34: 1 | AM34: 38.49 | AN34: 14.35 | BL34: 10 | BM34: 268.78 | BN34: 268.78 | BO34: 671.95 | BP34: 134 | BQ34: 134 | BR34: 0 | BS34: 0 | BT34: 0 | BU34: 0 | CB34: -50 | CC34: -0.3 | CD34: -0.3 | CH34: =#VALUE! ->  | CI34: =#VALUE! -> 
A35: 32 | B35: محمد32 | C35: 1 | D35: نقابى | E35: متزوجة | F35: 0 | H35: خبير | I35: 498.56 | J35: 835.37 | L35: 45.83 | M35: 46.33 | N35: 49.85 | P35: 4 | Q35: 2 | AA35: 0 | AL35: 1 | AM35: 21.71 | AN35: 13.85 | BL35: 10 | BM35: 249.28 | BN35: 249.28 | BO35: 623.2 | BP35: 124 | BQ35: 124 | BR35: 0 | BS35: 0 | BT35: 0 | BU35: 0 | CB35: -50 | CC35: -0.3 | CD35: -0.3 | CH35: =#VALUE! ->  | CI35: =#VALUE! -> 
A36: 33 | B36: محمد33 | C36: 1 | D36: نقابى | E36: متزوج+2 | F36: 0 | H36: خبير | I36: 566.52 | J36: 938.62 | L36: 52.79 | M36: 53.29 | N36: 56.69 | P36: 4 | Q36: 6 | AA36: 0 | AL36: 1 | AM36: 26.73 | AN36: 14.95 | AY36: 4 | BL36: 10 | BM36: 283.26 | BN36: 283.26 | BO36: 708.15 | BP36: 141 | BQ36: 141 | BR36: 0 | BS36: 0 | BT36: 0 | BU36: 0 | CB36: -50 | CC36: -0.3 | CD36: -0.3 | CH36: =#VALUE! ->  | CI36: =#VALUE! -> 
A37: 34 | B37: محمد34 | C37: 1 | D37: نقابى | E37: متزوجة | F37: 0 | H37: خبير | I37: 514.52 | J37: 860.87 | L37: 47.4 | M37: 47.9 | N37: 51.45 | P37: 4 | Q37: 2 | AA37: 0 | AL37: 1 | AN37: 13.85 | BL37: 10 | BM37: 257.26 | BN37: 257.26 | BO37: 643.15 | BP37: 128 | BQ37: 128 | BR37: 0 | BS37: 0 | BT37: 0 | BU37: 0 | CB37: -50 | CC37: -0.3 | CD37: -0.3 | CH37: =#VALUE! ->  | CI37: =#VALUE! -> 
A38: 35 | B38: محمد35 | C38: 1 | D38: نقابى | F38: 0 | H38: خبير | J38: 0 | Q38: 0 | AA38: 0 | BL38: 10 | BM38: 0 | BN38: 0 | BO38: 0 | BP38: 0 | BQ38: 0 | BR38: 0 | BS38: 0 | BT38: 0 | BU38: 0 | CB38: -50 | CC38: -0.3 | CD38: -0.3 | CH38: =#VALUE! ->  | CI38: =#VALUE! -> 
A39: 36 | B39: محمد36 | C39: 1 | D39: نقابى | F39: 0 | H39: خبير | J39: 0 | Q39: 0 | AA39: 0 | BL39: 10 | BM39: 0 | BN39: 0 | BO39: 0 | BP39: 0 | BQ39: 0 | BR39: 0 | BS39: 0 | BT39: 0 | BU39: 0 | CB39: -50 | CC39: -0.3 | CD39: -0.3 | CH39: =#VALUE! ->  | CI39: =#VALUE! -> 
A40: 37 | B40: محمد37 | C40: 1 | D40: نقابى | F40: 0 | H40: خبير | J40: 0 | Q40: 0 | AA40: 0 | BL40: 10 | BM40: 0 | BN40: 0 | BO40: 0 | BP40: 0 | BQ40: 0 | BR40: 0 | BS40: 0 | BT40: 0 | BU40: 0 | CB40: -50 | CC40: -0.3 | CD40: -0.3 | CH40: =#VALUE! ->  | CI40: =#VALUE! -> 
A41: 38 | B41: محمد38 | C41: 1 | D41: نقابى | F41: 0 | H41: خبير | J41: 0 | Q41: 0 | AA41: 0 | BL41: 10 | BM41: 0 | BN41: 0 | BO41: 0 | BP41: 0 | BQ41: 0 | BR41: 0 | BS41: 0 | BT41: 0 | BU41: 0 | CB41: -50 | CC41: -0.3 | CD41: -0.3 | CH41: =#VALUE! ->  | CI41: =#VALUE! -> 
A42: 39 | B42: محمد39 | C42: 0 | F42: 0 | H42: خبير | J42: 0 | Q42: 0 | AA42: 0 | BL42: 10 | BM42: 0 | BN42: 0 | BO42: 0 | BP42: 0 | BQ42: 0 | BR42: 0 | BS42: 0 | BT42: 0 | BU42: 0 | CB42: -50 | CC42: -0.3 | CD42: -0.3 | CH42: =#VALUE! ->  | CI42: =#VALUE! -> 
A43: 40 | B43: محمد40 | C43: 0 | F43: 0 | H43: عامل تعاقد | I43: 150 | J43: 367.5 | L43: 15 | M43: 15 | N43: 15 | Q43: 0 | AA43: 225 | AN43: 6 | BL43: 0 | BM43: 0 | BN43: 0 | BO43: 0 | BP43: 37 | BQ43: 0 | BR43: 137 | BS43: 75 | BT43: 0 | BU43: 225 | CB43: 175 | CC43: 1.05 | CD43: 1.05 | CH43: =#VALUE! ->  | CI43: =#VALUE! -> 
A44: 41 | C44: 0 | F44: 0 | Q44: 0 | AA44: 0 | BM44: 0 | BN44: 0 | BO44: 0 | BP44: 0 | BQ44: 0 | BR44: 0 | BS44: 0 | BT44: 0 | BU44: 0 | CB44: 0 | CC44: 0 | CD44: 0 | CH44: =#VALUE! ->  | CI44: =#VALUE! -> 
A45: 42 | C45: 0 | F45: 0 | Q45: 0 | AA45: 0 | BM45: 0 | BN45: 0 | BO45: 0 | BP45: 0 | BQ45: 0 | BR45: 0 | BS45: 0 | BT45: 0 | BU45: 0 | CB45: 0 | CC45: 0 | CD45: 0 | CH45: =#VALUE! ->  | CI45: =#VALUE! -> 
A46: 43 | C46: 0 | F46: 0 | Q46: 0 | AA46: 0 | BM46: 0 | BN46: 0 | BO46: 0 | BP46: 0 | BQ46: 0 | BR46: 0 | BS46: 0 | BT46: 0 | BU46: 0 | CB46: 0 | CC46: 0 | CD46: 0 | CH46: =#VALUE! ->  | CI46: =#VALUE! -> 
A47: 44 | C47: 0 | F47: 0 | Q47: 0 | AA47: 0 | BM47: 0 | BN47: 0 | BO47: 0 | BP47: 0 | BQ47: 0 | BR47: 0 | BS47: 0 | BT47: 0 | BU47: 0 | CB47: 0 | CC47: 0 | CD47: 0 | CH47: =#VALUE! ->  | CI47: =#VALUE! -> 
A48: 45 | C48: 0 | F48: 0 | Q48: 0 | AA48: 0 | BM48: 0 | BN48: 0 | BO48: 0 | BP48: 0 | BQ48: 0 | BR48: 0 | BS48: 0 | BT48: 0 | BU48: 0 | CB48: 0 | CC48: 0 | CD48: 0 | CH48: =#VALUE! ->  | CI48: =#VALUE! -> 
A49: 46 | C49: 0 | F49: 0 | Q49: 0 | AA49: 0 | BM49: 0 | BN49: 0 | BO49: 0 | BP49: 0 | BQ49: 0 | BR49: 0 | BS49: 0 | BT49: 0 | BU49: 0 | CB49: 0 | CC49: 0 | CD49: 0 | CH49: =#VALUE! ->  | CI49: =#VALUE! -> 
A50: 47 | C50: 0 | F50: 0 | Q50: 0 | AA50: 0 | BM50: 0 | BN50: 0 | BO50: 0 | BP50: 0 | BQ50: 0 | BR50: 0 | BS50: 0 | BT50: 0 | BU50: 0 | CB50: 0 | CC50: 0 | CD50: 0 | CH50: =#VALUE! ->  | CI50: =#VALUE! -> 
A51: 48 | C51: 0 | F51: 0 | Q51: 0 | AA51: 0 | BM51: 0 | BN51: 0 | BO51: 0 | BP51: 0 | BQ51: 0 | BR51: 0 | BS51: 0 | BT51: 0 | BU51: 0 | CB51: 0 | CC51: 0 | CD51: 0 | CH51: =#VALUE! ->  | CI51: =#VALUE! -> 
A52: 49 | C52: 0 | F52: 0 | Q52: 0 | AA52: 0 | BM52: 0 | BN52: 0 | BO52: 0 | BP52: 0 | BQ52: 0 | BR52: 0 | BS52: 0 | BT52: 0 | BU52: 0 | CB52: 0 | CC52: 0 | CD52: 0 | CH52: =#VALUE! ->  | CI52: =#VALUE! -> 
A53: 50 | C53: 0 | F53: 0 | Q53: 0 | AA53: 0 | BM53: 0 | BN53: 0 | BO53: 0 | BP53: 0 | BQ53: 0 | BR53: 0 | BS53: 0 | BT53: 0 | BU53: 0 | CB53: 0 | CC53: 0 | CD53: 0 | CH53: =#VALUE! ->  | CI53: =#VALUE! -> 
A54: 51 | C54: 0 | F54: 0 | Q54: 0 | AA54: 0 | BM54: 0 | BN54: 0 | BO54: 0 | BP54: 0 | BQ54: 0 | BR54: 0 | BS54: 0 | BT54: 0 | BU54: 0 | CB54: 0 | CC54: 0 | CD54: 0 | CH54: =#VALUE! ->  | CI54: =#VALUE! -> 
A55: 52 | C55: 0 | F55: 0 | Q55: 0 | AA55: 0 | BM55: 0 | BN55: 0 | BO55: 0 | BP55: 0 | BQ55: 0 | BR55: 0 | BS55: 0 | BT55: 0 | BU55: 0 | CB55: 0 | CC55: 0 | CD55: 0 | CH55: =#VALUE! ->  | CI55: =#VALUE! -> 
A56: 53 | C56: 0 | F56: 0 | Q56: 0 | AA56: 0 | BM56: 0 | BN56: 0 | BO56: 0 | BP56: 0 | BQ56: 0 | BR56: 0 | BS56: 0 | BT56: 0 | BU56: 0 | CB56: 0 | CC56: 0 | CD56: 0 | CH56: =#VALUE! ->  | CI56: =#VALUE! -> 
A57: 54 | C57: 0 | F57: 0 | Q57: 0 | AA57: 0 | BM57: 0 | BN57: 0 | BO57: 0 | BP57: 0 | BQ57: 0 | BR57: 0 | BS57: 0 | BT57: 0 | BU57: 0 | CB57: 0 | CC57: 0 | CD57: 0 | CH57: =#VALUE! ->  | CI57: =#VALUE! -> 
A58: 55 | C58: 0 | F58: 0 | Q58: 0 | AA58: 0 | BM58: 0 | BN58: 0 | BO58: 0 | BP58: 0 | BQ58: 0 | BR58: 0 | BS58: 0 | BT58: 0 | BU58: 0 | CB58: 0 | CC58: 0 | CD58: 0 | CH58: =#VALUE! ->  | CI58: =#VALUE! -> 
A59: 56 | C59: 0 | F59: 0 | Q59: 0 | AA59: 0 | BM59: 0 | BN59: 0 | BO59: 0 | BP59: 0 | BQ59: 0 | BR59: 0 | BS59: 0 | BT59: 0 | BU59: 0 | CB59: 0 | CC59: 0 | CD59: 0 | CH59: =#VALUE! ->  | CI59: =#VALUE! -> 
A60: 57 | C60: 0 | F60: 0 | Q60: 0 | AA60: 0 | BM60: 0 | BN60: 0 | BO60: 0 | BP60: 0 | BQ60: 0 | BR60: 0 | BS60: 0 | BT60: 0 | BU60: 0 | CB60: 0 | CC60: 0 | CD60: 0 | CH60: =#VALUE! ->  | CI60: =#VALUE! -> 
A61: 58 | C61: 0 | F61: 0 | Q61: 0 | AA61: 0 | BM61: 0 | BN61: 0 | BO61: 0 | BP61: 0 | BQ61: 0 | BR61: 0 | BS61: 0 | BT61: 0 | BU61: 0 | CB61: 0 | CC61: 0 | CD61: 0 | CH61: =#VALUE! ->  | CI61: =#VALUE! -> 
A62: 59 | C62: 0 | F62: 0 | Q62: 0 | AA62: 0 | BM62: 0 | BN62: 0 | BO62: 0 | BP62: 0 | BQ62: 0 | BR62: 0 | BS62: 0 | BT62: 0 | BU62: 0 | CB62: 0 | CC62: 0 | CD62: 0 | CH62: =#VALUE! ->  | CI62: =#VALUE! -> 
A63: 60 | C63: 0 | F63: 0 | Q63: 0 | AA63: 0 | BM63: 0 | BN63: 0 | BO63: 0 | BP63: 0 | BQ63: 0 | BR63: 0 | BS63: 0 | BT63: 0 | BU63: 0 | CB63: 0 | CC63: 0 | CD63: 0 | CH63: =#VALUE! ->  | CI63: =#VALUE! -> 
A64: 61 | C64: 0 | F64: 0 | Q64: 0 | AA64: 0 | BM64: 0 | BN64: 0 | BO64: 0 | BP64: 0 | BQ64: 0 | BR64: 0 | BS64: 0 | BT64: 0 | BU64: 0 | CB64: 0 | CC64: 0 | CD64: 0 | CH64: =#VALUE! ->  | CI64: =#VALUE! -> 
A65: 62 | C65: 0 | F65: 0 | Q65: 0 | AA65: 0 | BM65: 0 | BN65: 0 | BO65: 0 | BP65: 0 | BQ65: 0 | BR65: 0 | BS65: 0 | BT65: 0 | BU65: 0 | CB65: 0 | CC65: 0 | CD65: 0 | CH65: =#VALUE! ->  | CI65: =#VALUE! -> 
A66: 63 | C66: 0 | F66: 0 | Q66: 0 | AA66: 0 | BM66: 0 | BN66: 0 | BO66: 0 | BP66: 0 | BQ66: 0 | BR66: 0 | BS66: 0 | BT66: 0 | BU66: 0 | CB66: 0 | CC66: 0 | CD66: 0 | CH66: =#VALUE! ->  | CI66: =#VALUE! -> 
A67: 64 | C67: 0 | F67: 0 | Q67: 0 | AA67: 0 | BM67: 0 | BN67: 0 | BO67: 0 | BP67: 0 | BQ67: 0 | BR67: 0 | BS67: 0 | BT67: 0 | BU67: 0 | CB67: 0 | CC67: 0 | CD67: 0 | CH67: =#VALUE! ->  | CI67: =#VALUE! -> 
A68: 65 | C68: 0 | F68: 0 | Q68: 0 | AA68: 0 | BM68: 0 | BN68: 0 | BO68: 0 | BP68: =INT(IF(H68="عامل تعاقد",I68*25/100,IF(H68="معلم مساعد",I68*25/100,IF(H68="معلم",I68*25/100,IF(H68="معلم أول",I68*25/100,IF(H68="معلم أول أ",I68*25/100,IF(H68="خبير",I68*25/100,IF(H68="كبير",I68*25/100,)))))))) -> 0 | BQ68: =INT(IF(H68="إدارى",J68*0/100,IF(H68="معلم مساعد",I68*125/100,IF(H68="معلم",I68*75/100,IF(H68="معلم أول",I68*50/100,IF(H68="معلم أول أ",I68*25/100,IF(H68="خبير",I68*25/100,IF(H68="كبير",I68*25/100,)))))))) -> 0 | BR68: =INT(IF(H68="عامل تعاقد",I68*0.9166,IF(H68="معلم تعاقد",I68*0.9166,0))) -> 0 | BS68: =INT(IF(H68="عامل تعاقد",I68*0.5,IF(H68="معلم تعاقد",I68*0.5,0))) -> 0 | BT68: =INT(IF(F68=1,I68*0.3333,0)) -> 0 | BU68: =IF(H68="عامل تعاقد",225,IF(H68="معلم تعاقد",300,0)) -> 0 | CB68: =IF($B68>0,(SUM(R68:AD68)-50),0) -> 0 | CC68: =IF(CB68<250,(CB68*0.006),IF(CB68<500,(CB68*0.0065),IF(CB68<1000,(CB68*0.007),IF(CB68<5000,(CB68*0.0075),IF(CB68>5000,(CB68*0.008)," " ))))) -> 0 | CD68: 0 | CH68: =#VALUE! ->  | CI68: =#VALUE! -> 
A69: 66 | C69: 0 | F69: 0 | Q69: =IF(E69="متزوج",2,IF(E69="متزوج+1",4,IF(E69="متزوج+2",6,IF(E69="متزوجة",2,0)))) -> 0 | AA69: =BU69 -> 0 | BL69: =IF(H69="معلم مساعد",10,IF(H69="معلم تعاقد",10,IF(H69="معلم",10,IF(H69="معلم أول",10,IF(H69="معلم أول أ",10,IF(H69="خبير",10,IF(H69="كبير",10,IF(H69="عامل تعاقد",0,"")))))))) ->  | BM69: =IF(H69="عقد مميز",I69*0/100,IF(H69="معلم تعاقد",I69*0/100,IF(H69="معلم",I69*50/100,IF(H69="معلم أول",I69*50/100,IF(H69="معلم أول أ",I69*50/100,IF(H69="خبير",I69*50/100,IF(H69="كبير",I69*50/100,))))))) -> 0 | BN69: =IF(H69="معلم مساعد",I69*50/100,IF(H69="عامل تعاقد",I69*0/100,IF(H69="معلم",I69*50/100,IF(H69="معلم أول",I69*50/100,IF(H69="معلم أول أ",I69*50/100,IF(H69="خبير",I69*50/100,IF(H69="كبير",I69*50/100,))))))) -> 0 | BO69: 0 | BP69: 0 | BQ69: 0 | BR69: 0 | BS69: 0 | BT69: 0 | BU69: 0 | CB69: 0 | CC69: 0 | CD69: =CEILING($CC69,0.05) -> 0 | CH69: =#VALUE! ->  | CI69: =#VALUE! -> 
A70: 67 | C70: 0 | F70: 0 | Q70: 0 | AA70: 0 | BM70: 0 | BN70: 0 | BO70: =IF(H70="إدارى",I70*0,IF(H70="معلم مساعد",I70*0/100,IF(H70="معلم",I70*50/100,IF(H70="معلم أول",I70*75/100,IF(H70="معلم أول أ",I70*100/100,IF(H70="خبير",I70*125/100,IF(H70="كبير",I70*150/100,))))))) -> 0 | BP70: 0 | BQ70: 0 | BR70: 0 | BS70: 0 | BT70: 0 | BU70: 0 | CB70: 0 | CC70: 0 | CD70: 0 | CH70: =#VALUE! ->  | CI70: =#VALUE! -> 
A71: 68 | C71: 0 | F71: 0 | Q71: 0 | AA71: 0 | BM71: 0 | BN71: 0 | BO71: 0 | BP71: 0 | BQ71: 0 | BR71: 0 | BS71: 0 | BT71: 0 | BU71: 0 | CB71: 0 | CC71: 0 | CD71: 0 | CH71: =#VALUE! ->  | CI71: =#VALUE! -> 
A72: 69 | C72: =IF(D72="نقابى",1,IF(D72="حالة خاصة",2,0)) -> 0 | F72: 0 | Q72: 0 | AA72: 0 | BM72: 0 | BN72: 0 | BO72: 0 | BP72: 0 | BQ72: 0 | BR72: 0 | BS72: 0 | BT72: 0 | BU72: 0 | CB72: 0 | CC72: 0 | CD72: 0 | CH72: =#VALUE! ->  | CI72: =#VALUE! -> 
A73: 70 | C73: 0 | F73: 0 | Q73: 0 | AA73: 0 | BM73: 0 | BN73: 0 | BO73: 0 | BP73: 0 | BQ73: 0 | BR73: 0 | BS73: 0 | BT73: 0 | BU73: 0 | CB73: 0 | CC73: 0 | CD73: 0 | CH73: =#VALUE! ->  | CI73: =#VALUE! -> 
A74: 71 | C74: 0 | F74: 0 | Q74: 0 | AA74: 0 | BM74: 0 | BN74: 0 | BO74: 0 | BP74: 0 | BQ74: 0 | BR74: 0 | BS74: 0 | BT74: 0 | BU74: 0 | CB74: 0 | CC74: 0 | CD74: 0 | CH74: =#VALUE! ->  | CI74: =#VALUE! -> 
A75: 72 | C75: 0 | F75: 0 | Q75: 0 | AA75: 0 | BM75: 0 | BN75: 0 | BO75: 0 | BP75: 0 | BQ75: 0 | BR75: 0 | BS75: 0 | BT75: 0 | BU75: 0 | CB75: 0 | CC75: 0 | CD75: 0 | CH75: =#VALUE! ->  | CI75: =#VALUE! -> 
A76: 73 | C76: 0 | F76: 0 | Q76: 0 | AA76: 0 | BM76: 0 | BN76: 0 | BO76: 0 | BP76: 0 | BQ76: 0 | BR76: 0 | BS76: 0 | BT76: 0 | BU76: 0 | CB76: 0 | CC76: 0 | CD76: 0 | CH76: =#VALUE! ->  | CI76: =#VALUE! -> 
A77: 74 | C77: 0 | F77: 0 | Q77: 0 | AA77: 0 | BM77: 0 | BN77: 0 | BO77: 0 | BP77: 0 | BQ77: 0 | BR77: 0 | BS77: 0 | BT77: 0 | BU77: 0 | CB77: 0 | CC77: 0 | CD77: 0 | CH77: =#VALUE! ->  | CI77: =#VALUE! -> 
A78: 75 | C78: 0 | F78: 0 | Q78: 0 | AA78: 0 | BM78: 0 | BN78: 0 | BO78: 0 | BP78: 0 | BQ78: 0 | BR78: 0 | BS78: 0 | BT78: 0 | BU78: 0 | CB78: 0 | CC78: 0 | CD78: 0 | CH78: =#VALUE! ->  | CI78: =#VALUE! -> 
A79: 76 | C79: 0 | F79: 0 | Q79: 0 | AA79: 0 | BM79: 0 | BN79: 0 | BO79: 0 | BP79: 0 | BQ79: 0 | BR79: 0 | BS79: 0 | BT79: 0 | BU79: 0 | CB79: 0 | CC79: 0 | CD79: 0 | CH79: =#VALUE! ->  | CI79: =#VALUE! -> 
A80: 77 | C80: 0 | F80: 0 | Q80: 0 | AA80: 0 | BM80: 0 | BN80: 0 | BO80: 0 | BP80: 0 | BQ80: 0 | BR80: 0 | BS80: 0 | BT80: 0 | BU80: 0 | CB80: 0 | CC80: 0 | CD80: 0 | CH80: =#VALUE! ->  | CI80: =#VALUE! -> 
A81: 78 | C81: 0 | F81: 0 | Q81: 0 | AA81: 0 | BM81: 0 | BN81: 0 | BO81: 0 | BP81: 0 | BQ81: 0 | BR81: 0 | BS81: 0 | BT81: 0 | BU81: 0 | CB81: 0 | CC81: 0 | CD81: 0 | CH81: =#VALUE! ->  | CI81: =#VALUE! -> 
A82: 79 | C82: 0 | F82: 0 | Q82: 0 | AA82: 0 | BM82: 0 | BN82: 0 | BO82: 0 | BP82: 0 | BQ82: 0 | BR82: 0 | BS82: 0 | BT82: 0 | BU82: 0 | CB82: 0 | CC82: 0 | CD82: 0 | CH82: =#VALUE! ->  | CI82: =#VALUE! -> 
A83: 80 | C83: 0 | F83: 0 | Q83: 0 | AA83: 0 | BM83: 0 | BN83: 0 | BO83: 0 | BP83: 0 | BQ83: 0 | BR83: 0 | BS83: 0 | BT83: 0 | BU83: 0 | CB83: 0 | CC83: 0 | CD83: 0 | CH83: =#VALUE! ->  | CI83: =#VALUE! -> 
A84: 81 | C84: 0 | F84: 0 | Q84: 0 | AA84: 0 | BM84: 0 | BN84: 0 | BO84: 0 | BP84: 0 | BQ84: 0 | BR84: 0 | BS84: 0 | BT84: 0 | BU84: 0 | CB84: 0 | CC84: 0 | CD84: 0 | CH84: =#VALUE! ->  | CI84: =#VALUE! -> 
A85: 82 | C85: 0 | F85: 0 | Q85: 0 | AA85: 0 | BM85: 0 | BN85: 0 | BO85: 0 | BP85: 0 | BQ85: 0 | BR85: 0 | BS85: 0 | BT85: 0 | BU85: 0 | CB85: 0 | CC85: 0 | CD85: 0 | CH85: =#VALUE! ->  | CI85: =#VALUE! -> 
A86: 83 | C86: 0 | F86: 0 | Q86: 0 | AA86: 0 | BM86: 0 | BN86: 0 | BO86: 0 | BP86: 0 | BQ86: 0 | BR86: 0 | BS86: 0 | BT86: 0 | BU86: 0 | CB86: 0 | CC86: 0 | CD86: 0 | CH86: =#VALUE! ->  | CI86: =#VALUE! -> 
A87: 84 | C87: 0 | F87: 0 | Q87: 0 | AA87: 0 | BM87: 0 | BN87: 0 | BO87: 0 | BP87: 0 | BQ87: 0 | BR87: 0 | BS87: 0 | BT87: 0 | BU87: 0 | CB87: 0 | CC87: 0 | CD87: 0 | CH87: =#VALUE! ->  | CI87: =#VALUE! -> 
A88: 85 | C88: 0 | F88: 0 | Q88: 0 | AA88: 0 | BM88: 0 | BN88: 0 | BO88: 0 | BP88: 0 | BQ88: 0 | BR88: 0 | BS88: 0 | BT88: 0 | BU88: 0 | CB88: 0 | CC88: 0 | CD88: 0 | CH88: =#VALUE! ->  | CI88: =#VALUE! -> 
A89: 83 | C89: 0 | F89: 0 | Q89: 0 | AA89: 0 | BM89: 0 | BN89: 0 | BO89: 0 | BP89: 0 | BQ89: 0 | BR89: 0 | BS89: 0 | BT89: 0 | BU89: 0 | CB89: 0 | CC89: 0 | CD89: 0 | CH89: =#VALUE! ->  | CI89: =#VALUE! -> 
A90: 84 | C90: 0 | F90: 0 | Q90: 0 | AA90: 0 | BM90: 0 | BN90: 0 | BO90: 0 | BP90: 0 | BQ90: 0 | BR90: 0 | BS90: 0 | BT90: 0 | BU90: 0 | CB90: 0 | CC90: 0 | CD90: 0 | CH90: =#VALUE! ->  | CI90: =#VALUE! -> 
A91: 88 | C91: 0 | F91: 0 | Q91: 0 | AA91: 0 | BM91: 0 | BN91: 0 | BO91: 0 | BP91: 0 | BQ91: 0 | BR91: 0 | BS91: 0 | BT91: 0 | BU91: 0 | CB91: 0 | CC91: 0 | CD91: 0 | CH91: =#VALUE! ->  | CI91: =#VALUE! -> 
A92: 89 | C92: 0 | F92: 0 | Q92: 0 | AA92: 0 | BM92: 0 | BN92: 0 | BO92: 0 | BP92: 0 | BQ92: 0 | BR92: 0 | BS92: 0 | BT92: 0 | BU92: 0 | CB92: 0 | CC92: 0 | CD92: 0 | CH92: =#VALUE! ->  | CI92: =#VALUE! -> 
A93: 90 | C93: 0 | F93: 0 | Q93: 0 | AA93: 0 | BM93: 0 | BN93: 0 | BO93: 0 | BP93: 0 | BQ93: 0 | BR93: 0 | BS93: 0 | BT93: 0 | BU93: 0 | CB93: 0 | CC93: 0 | CD93: 0 | CH93: =#VALUE! ->  | CI93: =#VALUE! -> 
A94: 91 | C94: 0 | F94: 0 | Q94: 0 | AA94: 0 | BM94: 0 | BN94: 0 | BO94: 0 | BP94: 0 | BQ94: 0 | BR94: 0 | BS94: 0 | BT94: 0 | BU94: 0 | CB94: 0 | CC94: 0 | CD94: 0 | CH94: =#VALUE! ->  | CI94: =#VALUE! -> 
A95: 92 | C95: 0 | F95: 0 | Q95: 0 | AA95: 0 | BM95: 0 | BN95: 0 | BO95: 0 | BP95: 0 | BQ95: 0 | BR95: 0 | BS95: 0 | BT95: 0 | BU95: 0 | CB95: 0 | CC95: 0 | CD95: 0 | CH95: =#VALUE! ->  | CI95: =#VALUE! -> 
A96: 93 | C96: 0 | F96: 0 | Q96: 0 | AA96: 0 | BM96: 0 | BN96: 0 | BO96: 0 | BP96: 0 | BQ96: 0 | BR96: 0 | BS96: 0 | BT96: 0 | BU96: 0 | CB96: 0 | CC96: 0 | CD96: 0 | CH96: =#VALUE! ->  | CI96: =#VALUE! -> 
A97: 94 | C97: 0 | F97: 0 | Q97: 0 | AA97: 0 | BM97: 0 | BN97: 0 | BO97: 0 | BP97: 0 | BQ97: 0 | BR97: 0 | BS97: 0 | BT97: 0 | BU97: 0 | CB97: 0 | CC97: 0 | CD97: 0 | CH97: =#VALUE! ->  | CI97: =#VALUE! -> 
A98: 95 | C98: 0 | F98: 0 | Q98: 0 | AA98: 0 | BM98: 0 | BN98: 0 | BO98: 0 | BP98: 0 | BQ98: 0 | BR98: 0 | BS98: 0 | BT98: 0 | BU98: 0 | CB98: 0 | CC98: 0 | CD98: 0 | CH98: =#VALUE! ->  | CI98: =#VALUE! -> 
A99: 96 | C99: 0 | F99: 0 | Q99: 0 | AA99: 0 | BM99: 0 | BN99: 0 | BO99: 0 | BP99: 0 | BQ99: 0 | BR99: 0 | BS99: 0 | BT99: 0 | BU99: 0 | CB99: 0 | CC99: 0 | CD99: 0 | CH99: =#VALUE! ->  | CI99: =#VALUE! -> 
A100: 97 | C100: 0 | F100: 0 | Q100: 0 | AA100: 0 | BM100: 0 | BN100: 0 | BO100: 0 | BP100: 0 | BQ100: 0 | BR100: 0 | BS100: 0 | BT100: 0 | BU100: 0 | CB100: 0 | CC100: 0 | CD100: 0 | CH100: =#VALUE! ->  | CI100: =#VALUE! -> 
A101: 98 | C101: 0 | F101: 0 | Q101: 0 | AA101: 0 | BM101: 0 | BN101: 0 | BO101: 0 | BP101: 0 | BQ101: 0 | BR101: 0 | BS101: 0 | BT101: 0 | BU101: 0 | CB101: 0 | CC101: 0 | CD101: 0 | CH101: =#VALUE! ->  | CI101: =#VALUE! -> 
A102: 99 | C102: 0 | F102: 0 | Q102: 0 | AA102: 0 | BM102: 0 | BN102: 0 | BO102: 0 | BP102: 0 | BQ102: 0 | BR102: 0 | BS102: 0 | BT102: 0 | BU102: 0 | CB102: 0 | CC102: 0 | CD102: 0 | CH102: =#VALUE! ->  | CI102: =#VALUE! -> 
A103: 100 | C103: 0 | F103: 0 | Q103: 0 | AA103: 0 | BM103: 0 | BN103: 0 | BO103: 0 | BP103: 0 | BQ103: 0 | BR103: 0 | BS103: 0 | BT103: 0 | BU103: 0 | CB103: 0 | CC103: 0 | CD103: 0 | CH103: =#VALUE! ->  | CI103: =#VALUE! -> 
C104: 0 | F104: 0 | Q104: 0 | AA104: 0 | BM104: 0 | BN104: 0 | BO104: 0 | BP104: 0 | BQ104: 0 | BR104: 0 | BS104: 0 | BT104: 0 | BU104: 0 | CB104: 0 | CC104: 0 | CD104: 0 | CH104: =#VALUE! ->  | CI104: =#VALUE! -> 
C105: 0 | F105: 0 | Q105: 0 | AA105: 0 | BM105: 0 | BN105: 0 | BO105: 0 | BP105: 0 | BQ105: 0 | BR105: 0 | BS105: 0 | BT105: 0 | BU105: 0 | CB105: 0 | CC105: 0 | CD105: 0 | CH105: =#VALUE! ->  | CI105: =#VALUE! -> 
C106: 0 | F106: 0 | Q106: 0 | AA106: 0 | BM106: 0 | BN106: 0 | BO106: 0 | BP106: 0 | BQ106: 0 | BR106: 0 | BS106: 0 | BT106: 0 | BU106: 0 | CB106: 0 | CC106: 0 | CD106: 0 | CH106: =#VALUE! ->  | CI106: =#VALUE! -> 
C107: 0 | F107: 0 | Q107: 0 | AA107: 0 | BM107: 0 | BN107: 0 | BO107: 0 | BP107: 0 | BQ107: 0 | BR107: 0 | BS107: 0 | BT107: 0 | BU107: 0 | CB107: 0 | CC107: 0 | CD107: 0 | CH107: =#VALUE! ->  | CI107: =#VALUE! -> 
C108: 0 | F108: 0 | Q108: 0 | AA108: 0 | BM108: 0 | BN108: 0 | BO108: 0 | BP108: 0 | BQ108: 0 | BR108: 0 | BS108: 0 | BT108: 0 | BU108: 0 | CB108: 0 | CC108: 0 | CD108: 0 | CH108: =#VALUE! ->  | CI108: =#VALUE! -> 
C109: 0 | F109: 0 | Q109: 0 | AA109: 0 | BM109: 0 | BN109: 0 | BO109: 0 | BP109: 0 | BQ109: 0 | BR109: 0 | BS109: 0 | BT109: 0 | BU109: 0 | CB109: 0 | CC109: 0 | CD109: 0 | CH109: =#VALUE! ->  | CI109: =#VALUE! -> 
C110: 0 | F110: 0 | Q110: 0 | AA110: 0 | BM110: 0 | BN110: 0 | BO110: 0 | BP110: 0 | BQ110: 0 | BR110: 0 | BS110: 0 | BT110: 0 | BU110: 0 | CB110: 0 | CC110: 0 | CD110: 0 | CH110: =#VALUE! ->  | CI110: =#VALUE! -> 
C111: 0 | F111: 0 | Q111: 0 | AA111: 0 | BM111: 0 | BN111: 0 | BO111: 0 | BP111: 0 | BQ111: 0 | BR111: 0 | BS111: 0 | BT111: 0 | BU111: 0 | CB111: 0 | CC111: 0 | CD111: 0 | CH111: =#VALUE! ->  | CI111: =#VALUE! -> 
C112: 0 | F112: 0 | Q112: 0 | AA112: 0 | BM112: 0 | BN112: 0 | BO112: 0 | BP112: 0 | BQ112: 0 | BR112: 0 | BS112: 0 | BT112: 0 | BU112: 0 | CB112: 0 | CC112: 0 | CD112: 0 | CH112: =#VALUE! ->  | CI112: =#VALUE! -> 
C113: 0 | F113: 0 | Q113: 0 | AA113: 0 | BM113: 0 | BN113: 0 | BO113: 0 | BP113: 0 | BQ113: 0 | BR113: 0 | BS113: 0 | BT113: 0 | BU113: 0 | CB113: 0 | CC113: 0 | CD113: 0 | CH113: =#VALUE! ->  | CI113: =#VALUE! -> 
C114: 0 | F114: 0 | Q114: 0 | AA114: 0 | BM114: 0 | BN114: 0 | BO114: 0 | BP114: 0 | BQ114: 0 | BR114: 0 | BS114: 0 | BT114: 0 | BU114: 0 | CB114: 0 | CC114: 0 | CD114: 0 | CH114: =#VALUE! ->  | CI114: =#VALUE! -> 
C115: 0 | F115: 0 | Q115: 0 | AA115: 0 | BM115: 0 | BN115: 0 | BO115: 0 | BP115: 0 | BQ115: 0 | BR115: 0 | BS115: 0 | BT115: 0 | BU115: 0 | CB115: 0 | CC115: 0 | CD115: 0 | CH115: =#VALUE! ->  | CI115: =#VALUE! -> 
C116: 0 | F116: 0 | Q116: 0 | AA116: 0 | BM116: 0 | BN116: 0 | BO116: 0 | BP116: 0 | BQ116: 0 | BR116: 0 | BS116: 0 | BT116: 0 | BU116: 0 | CB116: 0 | CC116: 0 | CD116: 0 | CH116: =#VALUE! ->  | CI116: =#VALUE! -> 
C117: 0 | D117: غير نقابى | F117: 0 | Q117: 0 | AA117: 0 | BM117: 0 | BN117: 0 | BO117: 0 | BP117: 0 | BQ117: 0 | BR117: 0 | BS117: 0 | BT117: 0 | BU117: 0 | CB117: 0 | CC117: 0 | CD117: 0 | CH117: =#VALUE! ->  | CI117: =#VALUE! -> 
C118: 0 | F118: 0 | Q118: 0 | AA118: 0 | BM118: 0 | BN118: 0 | BO118: 0 | BP118: 0 | BQ118: 0 | BR118: 0 | BS118: 0 | BT118: 0 | BU118: 0 | CB118: 0 | CC118: 0 | CD118: 0 | CH118: =#VALUE! ->  | CI118: =#VALUE! -> 
C119: 0 | F119: 0 | Q119: 0 | AA119: 0 | BM119: 0 | BN119: 0 | BO119: 0 | BP119: 0 | BQ119: 0 | BR119: 0 | BS119: 0 | BT119: 0 | BU119: 0 | CB119: 0 | CC119: 0 | CD119: 0 | CH119: =#VALUE! ->  | CI119: =#VALUE! -> 
C120: 0 | F120: 0 | Q120: 0 | AA120: 0 | BM120: 0 | BN120: 0 | BO120: 0 | BP120: 0 | BQ120: 0 | BR120: 0 | BS120: 0 | BT120: 0 | BU120: 0 | CB120: 0 | CC120: 0 | CD120: 0 | CH120: =#VALUE! ->  | CI120: =#VALUE! -> 
C121: 0 | F121: 0 | Q121: 0 | AA121: 0 | BM121: 0 | BN121: 0 | BO121: 0 | BP121: 0 | BQ121: 0 | BR121: 0 | BS121: 0 | BT121: 0 | BU121: 0 | CB121: 0 | CC121: 0 | CD121: 0 | CH121: =#VALUE! ->  | CI121: =#VALUE! -> 
C122: 0 | F122: 0 | Q122: 0 | AA122: 0 | BM122: 0 | BN122: 0 | BO122: 0 | BP122: 0 | BQ122: 0 | BR122: 0 | BS122: 0 | BT122: 0 | BU122: 0 | CB122: 0 | CC122: 0 | CD122: 0 | CH122: =#VALUE! ->  | CI122: =#VALUE! -> 
C123: 0 | F123: 0 | Q123: 0 | AA123: 0 | BM123: 0 | BN123: 0 | BO123: 0 | BP123: 0 | BQ123: 0 | BR123: 0 | BS123: 0 | BT123: 0 | BU123: 0 | CB123: 0 | CC123: 0 | CD123: 0 | CH123: =#VALUE! ->  | CI123: =#VALUE! -> 
C124: 0 | F124: 0 | Q124: 0 | AA124: 0 | BM124: 0 | BN124: 0 | BO124: 0 | BP124: 0 | BQ124: 0 | BR124: 0 | BS124: 0 | BT124: 0 | BU124: 0 | CB124: 0 | CC124: 0 | CD124: 0 | CH124: =#VALUE! ->  | CI124: =#VALUE! -> 
C125: 0 | F125: 0 | Q125: 0 | AA125: 0 | BM125: 0 | BN125: 0 | BO125: 0 | BP125: 0 | BQ125: 0 | BR125: 0 | BS125: 0 | BT125: 0 | BU125: 0 | CB125: 0 | CC125: 0 | CD125: 0 | CH125: =#VALUE! ->  | CI125: =#VALUE! -> 
C126: 0 | F126: 0 | Q126: 0 | AA126: 0 | BM126: 0 | BN126: 0 | BO126: 0 | BP126: 0 | BQ126: 0 | BR126: 0 | BS126: 0 | BT126: 0 | BU126: 0 | CB126: 0 | CC126: 0 | CD126: 0 | CH126: =#VALUE! ->  | CI126: =#VALUE! -> 
C127: 0 | F127: 0 | Q127: 0 | AA127: 0 | BM127: 0 | BN127: 0 | BO127: 0 | BP127: 0 | BQ127: 0 | BR127: 0 | BS127: 0 | BT127: 0 | BU127: 0 | CB127: 0 | CC127: 0 | CD127: 0 | CH127: =#VALUE! ->  | CI127: =#VALUE! -> 
C128: 0 | F128: 0 | Q128: 0 | AA128: 0 | BM128: 0 | BN128: 0 | BO128: 0 | BP128: 0 | BQ128: 0 | BR128: 0 | BS128: 0 | BT128: 0 | BU128: 0 | CB128: 0 | CC128: 0 | CD128: 0 | CH128: =#VALUE! ->  | CI128: =#VALUE! -> 
C129: 0 | F129: 0 | Q129: 0 | AA129: 0 | BM129: 0 | BN129: 0 | BO129: 0 | BP129: 0 | BQ129: 0 | BR129: 0 | BS129: 0 | BT129: 0 | BU129: 0 | CB129: 0 | CC129: 0 | CD129: 0 | CH129: =#VALUE! ->  | CI129: =#VALUE! -> 
C130: 0 | F130: 0 | Q130: 0 | AA130: 0 | BM130: 0 | BN130: 0 | BO130: 0 | BP130: 0 | BQ130: 0 | BR130: 0 | BS130: 0 | BT130: 0 | BU130: 0 | CB130: 0 | CC130: 0 | CD130: 0 | CH130: =#VALUE! ->  | CI130: =#VALUE! -> 
C131: 0 | F131: 0 | Q131: 0 | AA131: 0 | BM131: 0 | BN131: 0 | BO131: 0 | BP131: 0 | BQ131: 0 | BR131: 0 | BS131: 0 | BT131: 0 | BU131: 0 | CB131: 0 | CC131: 0 | CD131: 0 | CH131: =#VALUE! ->  | CI131: =#VALUE! -> 
C132: 0 | F132: 0 | Q132: 0 | AA132: 0 | BM132: 0 | BN132: 0 | BO132: 0 | BP132: =INT(IF(H132="عامل تعاقد",I132*25/100,IF(H132="معلم مساعد",I132*25/100,IF(H132="معلم",I132*25/100,IF(H132="معلم أول",I132*25/100,IF(H132="معلم أول أ",I132*25/100,IF(H132="خبير",I132*25/100,IF(H132="كبير",I132*25/100,)))))))) -> 0 | BQ132: =INT(IF(H132="إدارى",J132*0/100,IF(H132="معلم مساعد",I132*125/100,IF(H132="معلم",I132*75/100,IF(H132="معلم أول",I132*50/100,IF(H132="معلم أول أ",I132*25/100,IF(H132="خبير",I132*25/100,IF(H132="كبير",I132*25/100,)))))))) -> 0 | BR132: =INT(IF(H132="عامل تعاقد",I132*0.9166,IF(H132="معلم تعاقد",I132*0.9166,0))) -> 0 | BS132: =INT(IF(H132="عامل تعاقد",I132*0.5,IF(H132="معلم تعاقد",I132*0.5,0))) -> 0 | BT132: =INT(IF(F132=1,I132*0.3333,0)) -> 0 | BU132: =IF(H132="عامل تعاقد",225,IF(H132="معلم تعاقد",300,0)) -> 0 | CB132: =IF($B132>0,(SUM(R132:AD132)-50),0) -> 0 | CC132: =IF(CB132<250,(CB132*0.006),IF(CB132<500,(CB132*0.0065),IF(CB132<1000,(CB132*0.007),IF(CB132<5000,(CB132*0.0075),IF(CB132>5000,(CB132*0.008)," " ))))) -> 0 | CD132: 0 | CH132: =#VALUE! ->  | CI132: =#VALUE! -> 
C133: 0 | F133: 0 | Q133: =IF(E133="متزوج",2,IF(E133="متزوج+1",4,IF(E133="متزوج+2",6,IF(E133="متزوجة",2,0)))) -> 0 | AA133: =BU133 -> 0 | BL133: =IF(H133="معلم مساعد",10,IF(H133="معلم تعاقد",10,IF(H133="معلم",10,IF(H133="معلم أول",10,IF(H133="معلم أول أ",10,IF(H133="خبير",10,IF(H133="كبير",10,IF(H133="عامل تعاقد",0,"")))))))) ->  | BM133: =IF(H133="عقد مميز",I133*0/100,IF(H133="معلم تعاقد",I133*0/100,IF(H133="معلم",I133*50/100,IF(H133="معلم أول",I133*50/100,IF(H133="معلم أول أ",I133*50/100,IF(H133="خبير",I133*50/100,IF(H133="كبير",I133*50/100,))))))) -> 0 | BN133: =IF(H133="معلم مساعد",I133*50/100,IF(H133="عامل تعاقد",I133*0/100,IF(H133="معلم",I133*50/100,IF(H133="معلم أول",I133*50/100,IF(H133="معلم أول أ",I133*50/100,IF(H133="خبير",I133*50/100,IF(H133="كبير",I133*50/100,))))))) -> 0 | BO133: 0 | BP133: 0 | BQ133: 0 | BR133: 0 | BS133: 0 | BT133: 0 | BU133: 0 | CB133: 0 | CC133: 0 | CD133: =CEILING($CC133,0.05) -> 0 | CH133: =#VALUE! ->  | CI133: =#VALUE! -> 
C134: 0 | F134: 0 | Q134: 0 | AA134: 0 | BM134: 0 | BN134: 0 | BO134: =IF(H134="إدارى",I134*0,IF(H134="معلم مساعد",I134*0/100,IF(H134="معلم",I134*50/100,IF(H134="معلم أول",I134*75/100,IF(H134="معلم أول أ",I134*100/100,IF(H134="خبير",I134*125/100,IF(H134="كبير",I134*150/100,))))))) -> 0 | BP134: 0 | BQ134: 0 | BR134: 0 | BS134: 0 | BT134: 0 | BU134: 0 | CB134: 0 | CC134: 0 | CD134: 0 | CH134: =#VALUE! ->  | CI134: =#VALUE! -> 
C135: 0 | F135: 0 | Q135: 0 | AA135: 0 | BM135: 0 | BN135: 0 | BO135: 0 | BP135: 0 | BQ135: 0 | BR135: 0 | BS135: 0 | BT135: 0 | BU135: 0 | CB135: 0 | CC135: 0 | CD135: 0 | CH135: =#VALUE! ->  | CI135: =#VALUE! -> 
C136: =IF(D136="نقابى",1,IF(D136="حالة خاصة",2,0)) -> 0 | F136: 0 | Q136: 0 | AA136: 0 | BM136: 0 | BN136: 0 | BO136: 0 | BP136: 0 | BQ136: 0 | BR136: 0 | BS136: 0 | BT136: 0 | BU136: 0 | CB136: 0 | CC136: 0 | CD136: 0 | CH136: =#VALUE! ->  | CI136: =#VALUE! -> 
C137: 0 | F137: 0 | Q137: 0 | AA137: 0 | BM137: 0 | BN137: 0 | BO137: 0 | BP137: 0 | BQ137: 0 | BR137: 0 | BS137: 0 | BT137: 0 | BU137: 0 | CB137: 0 | CC137: 0 | CD137: 0 | CH137: =#VALUE! ->  | CI137: =#VALUE! -> 
C138: 0 | F138: 0 | Q138: 0 | AA138: 0 | BM138: 0 | BN138: 0 | BO138: 0 | BP138: 0 | BQ138: 0 | BR138: 0 | BS138: 0 | BT138: 0 | BU138: 0 | CB138: 0 | CC138: 0 | CD138: 0 | CH138: =#VALUE! ->  | CI138: =#VALUE! -> 
C139: 0 | F139: 0 | Q139: 0 | AA139: 0 | BM139: 0 | BN139: 0 | BO139: 0 | BP139: 0 | BQ139: 0 | BR139: 0 | BS139: 0 | BT139: 0 | BU139: 0 | CB139: 0 | CC139: 0 | CD139: 0 | CH139: =#VALUE! ->  | CI139: =#VALUE! -> 
C140: 0 | F140: 0 | Q140: 0 | AA140: 0 | BM140: 0 | BN140: 0 | BO140: 0 | BP140: 0 | BQ140: 0 | BR140: 0 | BS140: 0 | BT140: 0 | BU140: 0 | CB140: 0 | CC140: 0 | CD140: 0 | CH140: =#VALUE! ->  | CI140: =#VALUE! -> 
C141: 0 | F141: 0 | Q141: 0 | AA141: 0 | BM141: 0 | BN141: 0 | BO141: 0 | BP141: 0 | BQ141: 0 | BR141: 0 | BS141: 0 | BT141: 0 | BU141: 0 | CB141: 0 | CC141: 0 | CD141: 0 | CH141: =#VALUE! ->  | CI141: =#VALUE! -> 
C142: 0 | F142: 0 | Q142: 0 | AA142: 0 | BM142: 0 | BN142: 0 | BO142: 0 | BP142: 0 | BQ142: 0 | BR142: 0 | BS142: 0 | BT142: 0 | BU142: 0 | CB142: 0 | CC142: 0 | CD142: 0 | CH142: =#VALUE! ->  | CI142: =#VALUE! -> 
C143: 0 | F143: 0 | Q143: 0 | AA143: 0 | BM143: 0 | BN143: 0 | BO143: 0 | BP143: 0 | BQ143: 0 | BR143: 0 | BS143: 0 | BT143: 0 | BU143: 0 | CB143: 0 | CC143: 0 | CD143: 0 | CH143: =#VALUE! ->  | CI143: =#VALUE! -> 
C144: 0 | F144: 0 | Q144: 0 | AA144: 0 | BM144: 0 | BN144: 0 | BO144: 0 | BP144: 0 | BQ144: 0 | BR144: 0 | BS144: 0 | BT144: 0 | BU144: 0 | CB144: 0 | CC144: 0 | CD144: 0 | CH144: =#VALUE! ->  | CI144: =#VALUE! -> 
C145: 0 | F145: 0 | Q145: 0 | AA145: 0 | BM145: 0 | BN145: 0 | BO145: 0 | BP145: 0 | BQ145: 0 | BR145: 0 | BS145: 0 | BT145: 0 | BU145: 0 | CB145: 0 | CC145: 0 | CD145: 0 | CH145: =#VALUE! ->  | CI145: =#VALUE! -> 
C146: 0 | F146: 0 | Q146: 0 | AA146: 0 | BM146: 0 | BN146: 0 | BO146: 0 | BP146: 0 | BQ146: 0 | BR146: 0 | BS146: 0 | BT146: 0 | BU146: 0 | CB146: 0 | CC146: 0 | CD146: 0 | CH146: =#VALUE! ->  | CI146: =#VALUE! -> 
C147: 0 | F147: 0 | Q147: 0 | AA147: 0 | BM147: 0 | BN147: 0 | BO147: 0 | BP147: 0 | BQ147: 0 | BR147: 0 | BS147: 0 | BT147: 0 | BU147: 0 | CB147: 0 | CC147: 0 | CD147: 0 | CH147: =#VALUE! ->  | CI147: =#VALUE! -> 
C148: 0 | F148: 0 | Q148: 0 | AA148: 0 | BM148: 0 | BN148: 0 | BO148: 0 | BP148: 0 | BQ148: 0 | BR148: 0 | BS148: 0 | BT148: 0 | BU148: 0 | CB148: 0 | CC148: 0 | CD148: 0 | CH148: =#VALUE! ->  | CI148: =#VALUE! -> 
C149: 0 | F149: 0 | Q149: 0 | AA149: 0 | BM149: 0 | BN149: 0 | BO149: 0 | BP149: 0 | BQ149: 0 | BR149: 0 | BS149: 0 | BT149: 0 | BU149: 0 | CB149: 0 | CC149: 0 | CD149: 0 | CH149: =#VALUE! ->  | CI149: =#VALUE! -> 
C150: 0 | F150: 0 | Q150: 0 | AA150: 0 | BM150: 0 | BN150: 0 | BO150: 0 | BP150: 0 | BQ150: 0 | BR150: 0 | BS150: 0 | BT150: 0 | BU150: 0 | CB150: 0 | CC150: 0 | CD150: 0 | CH150: =#VALUE! ->  | CI150: =#VALUE! -> 
C151: 0 | F151: 0 | Q151: 0 | AA151: 0 | BM151: 0 | BN151: 0 | BO151: 0 | BP151: 0 | BQ151: 0 | BR151: 0 | BS151: 0 | BT151: 0 | BU151: 0 | CB151: 0 | CC151: 0 | CD151: 0 | CH151: =#VALUE! ->  | CI151: =#VALUE! -> 
C152: 0 | F152: 0 | Q152: 0 | AA152: 0 | BM152: 0 | BN152: 0 | BO152: 0 | BP152: 0 | BQ152: 0 | BR152: 0 | BS152: 0 | BT152: 0 | BU152: 0 | CB152: 0 | CC152: 0 | CD152: 0 | CH152: =#VALUE! ->  | CI152: =#VALUE! -> 
C153: 0 | F153: 0 | Q153: 0 | AA153: 0 | BM153: 0 | BN153: 0 | BO153: 0 | BP153: 0 | BQ153: 0 | BR153: 0 | BS153: 0 | BT153: 0 | BU153: 0 | CB153: 0 | CC153: 0 | CD153: 0 | CH153: =#VALUE! ->  | CI153: =#VALUE! -> 
C154: 0 | F154: 0 | Q154: 0 | AA154: 0 | BM154: 0 | BN154: 0 | BO154: 0 | BP154: 0 | BQ154: 0 | BR154: 0 | BS154: 0 | BT154: 0 | BU154: 0 | CB154: 0 | CC154: 0 | CD154: 0 | CH154: =#VALUE! ->  | CI154: =#VALUE! -> 
C155: 0 | F155: 0 | Q155: 0 | AA155: 0 | BM155: 0 | BN155: 0 | BO155: 0 | BP155: 0 | BQ155: 0 | BR155: 0 | BS155: 0 | BT155: 0 | BU155: 0 | CB155: 0 | CC155: 0 | CD155: 0 | CH155: =#VALUE! ->  | CI155: =#VALUE! -> 
C156: 0 | F156: 0 | Q156: 0 | AA156: 0 | BM156: 0 | BN156: 0 | BO156: 0 | BP156: 0 | BQ156: 0 | BR156: 0 | BS156: 0 | BT156: 0 | BU156: 0 | CB156: 0 | CC156: 0 | CD156: 0 | CH156: =#VALUE! ->  | CI156: =#VALUE! -> 
C157: 0 | F157: 0 | Q157: 0 | AA157: 0 | BM157: 0 | BN157: 0 | BO157: 0 | BP157: 0 | BQ157: 0 | BR157: 0 | BS157: 0 | BT157: 0 | BU157: 0 | CB157: 0 | CC157: 0 | CD157: 0 | CH157: =#VALUE! ->  | CI157: =#VALUE! -> 
C158: 0 | F158: 0 | Q158: 0 | AA158: 0 | BM158: 0 | BN158: 0 | BO158: 0 | BP158: 0 | BQ158: 0 | BR158: 0 | BS158: 0 | BT158: 0 | BU158: 0 | CB158: 0 | CC158: 0 | CD158: 0 | CH158: =#VALUE! ->  | CI158: =#VALUE! -> 
C159: 0 | F159: 0 | Q159: 0 | AA159: 0 | BM159: 0 | BN159: 0 | BO159: 0 | BP159: 0 | BQ159: 0 | BR159: 0 | BS159: 0 | BT159: 0 | BU159: 0 | CB159: 0 | CC159: 0 | CD159: 0 | CH159: =#VALUE! ->  | CI159: =#VALUE! -> 
C160: 0 | F160: 0 | Q160: 0 | AA160: 0 | BM160: 0 | BN160: 0 | BO160: 0 | BP160: 0 | BQ160: 0 | BR160: 0 | BS160: 0 | BT160: 0 | BU160: 0 | CB160: 0 | CC160: 0 | CD160: 0 | CH160: =#VALUE! ->  | CI160: =#VALUE! -> 
C161: 0 | F161: 0 | Q161: 0 | AA161: 0 | BM161: 0 | BN161: 0 | BO161: 0 | BP161: 0 | BQ161: 0 | BR161: 0 | BS161: 0 | BT161: 0 | BU161: 0 | CB161: 0 | CC161: 0 | CD161: 0 | CH161: =#VALUE! ->  | CI161: =#VALUE! -> 
C162: 0 | F162: 0 | Q162: 0 | AA162: 0 | BM162: 0 | BN162: 0 | BO162: 0 | BP162: 0 | BQ162: 0 | BR162: 0 | BS162: 0 | BT162: 0 | BU162: 0 | CB162: 0 | CC162: 0 | CD162: 0 | CH162: =#VALUE! ->  | CI162: =#VALUE! -> 
C163: 0 | F163: 0 | Q163: 0 | AA163: 0 | BM163: 0 | BN163: 0 | BO163: 0 | BP163: 0 | BQ163: 0 | BR163: 0 | BS163: 0 | BT163: 0 | BU163: 0 | CB163: 0 | CC163: 0 | CD163: 0 | CH163: =#VALUE! ->  | CI163: =#VALUE! -> 
C164: 0 | F164: 0 | Q164: 0 | AA164: 0 | BM164: 0 | BN164: 0 | BO164: 0 | BP164: 0 | BQ164: 0 | BR164: 0 | BS164: 0 | BT164: 0 | BU164: 0 | CB164: 0 | CC164: 0 | CD164: 0 | CH164: =#VALUE! ->  | CI164: =#VALUE! -> 
C165: 0 | F165: 0 | Q165: 0 | AA165: 0 | BM165: 0 | BN165: 0 | BO165: 0 | BP165: 0 | BQ165: 0 | BR165: 0 | BS165: 0 | BT165: 0 | BU165: 0 | CB165: 0 | CC165: 0 | CD165: 0 | CH165: =#VALUE! ->  | CI165: =#VALUE! -> 
C166: 0 | F166: 0 | Q166: 0 | AA166: 0 | BM166: 0 | BN166: 0 | BO166: 0 | BP166: 0 | BQ166: 0 | BR166: 0 | BS166: 0 | BT166: 0 | BU166: 0 | CB166: 0 | CC166: 0 | CD166: 0 | CH166: =#VALUE! ->  | CI166: =#VALUE! -> 
C167: 0 | F167: 0 | Q167: 0 | AA167: 0 | BM167: 0 | BN167: 0 | BO167: 0 | BP167: 0 | BQ167: 0 | BR167: 0 | BS167: 0 | BT167: 0 | BU167: 0 | CB167: 0 | CC167: 0 | CD167: 0 | CH167: =#VALUE! ->  | CI167: =#VALUE! -> 
C168: 0 | F168: 0 | Q168: 0 | AA168: 0 | BM168: 0 | BN168: 0 | BO168: 0 | BP168: 0 | BQ168: 0 | BR168: 0 | BS168: 0 | BT168: 0 | BU168: 0 | CB168: 0 | CC168: 0 | CD168: 0 | CH168: =#VALUE! ->  | CI168: =#VALUE! -> 
C169: 0 | F169: 0 | Q169: 0 | AA169: 0 | BM169: 0 | BN169: 0 | BO169: 0 | BP169: 0 | BQ169: 0 | BR169: 0 | BS169: 0 | BT169: 0 | BU169: 0 | CB169: 0 | CC169: 0 | CD169: 0 | CH169: =#VALUE! ->  | CI169: =#VALUE! -> 
C170: 0 | F170: 0 | Q170: 0 | AA170: 0 | BM170: 0 | BN170: 0 | BO170: 0 | BP170: 0 | BQ170: 0 | BR170: 0 | BS170: 0 | BT170: 0 | BU170: 0 | CB170: 0 | CC170: 0 | CD170: 0 | CH170: =#VALUE! ->  | CI170: =#VALUE! -> 
C171: 0 | F171: 0 | Q171: 0 | AA171: 0 | BM171: 0 | BN171: 0 | BO171: 0 | BP171: 0 | BQ171: 0 | BR171: 0 | BS171: 0 | BT171: 0 | BU171: 0 | CB171: 0 | CC171: 0 | CD171: 0 | CH171: =#VALUE! ->  | CI171: =#VALUE! -> 
C172: 0 | F172: 0 | Q172: 0 | AA172: 0 | BM172: 0 | BN172: 0 | BO172: 0 | BP172: 0 | BQ172: 0 | BR172: 0 | BS172: 0 | BT172: 0 | BU172: 0 | CB172: 0 | CC172: 0 | CD172: 0 | CH172: =#VALUE! ->  | CI172: =#VALUE! -> 
C173: 0 | F173: 0 | Q173: 0 | AA173: 0 | BM173: 0 | BN173: 0 | BO173: 0 | BP173: 0 | BQ173: 0 | BR173: 0 | BS173: 0 | BT173: 0 | BU173: 0 | CB173: 0 | CC173: 0 | CD173: 0 | CH173: =#VALUE! ->  | CI173: =#VALUE! -> 
C174: 0 | F174: 0 | Q174: 0 | AA174: 0 | BM174: 0 | BN174: 0 | BO174: 0 | BP174: 0 | BQ174: 0 | BR174: 0 | BS174: 0 | BT174: 0 | BU174: 0 | CB174: 0 | CC174: 0 | CD174: 0 | CH174: =#VALUE! ->  | CI174: =#VALUE! -> 
C175: 0 | F175: 0 | Q175: 0 | AA175: 0 | BM175: 0 | BN175: 0 | BO175: 0 | BP175: 0 | BQ175: 0 | BR175: 0 | BS175: 0 | BT175: 0 | BU175: 0 | CB175: 0 | CC175: 0 | CD175: 0 | CH175: =#VALUE! ->  | CI175: =#VALUE! -> 
C176: 0 | F176: 0 | Q176: 0 | AA176: 0 | BM176: 0 | BN176: 0 | BO176: 0 | BP176: 0 | BQ176: 0 | BR176: 0 | BS176: 0 | BT176: 0 | BU176: 0 | CB176: 0 | CC176: 0 | CD176: 0 | CH176: =#VALUE! ->  | CI176: =#VALUE! -> 
C177: 0 | F177: 0 | Q177: 0 | AA177: 0 | BM177: 0 | BN177: 0 | BO177: 0 | BP177: 0 | BQ177: 0 | BR177: 0 | BS177: 0 | BT177: 0 | BU177: 0 | CB177: 0 | CC177: 0 | CD177: 0 | CH177: =#VALUE! ->  | CI177: =#VALUE! -> 
C178: 0 | F178: 0 | Q178: 0 | AA178: 0 | BM178: 0 | BN178: 0 | BO178: 0 | BP178: 0 | BQ178: 0 | BR178: 0 | BS178: 0 | BT178: 0 | BU178: 0 | CB178: 0 | CC178: 0 | CD178: 0 | CH178: =#VALUE! ->  | CI178: =#VALUE! -> 
C179: 0 | F179: 0 | Q179: 0 | AA179: 0 | BM179: 0 | BN179: 0 | BO179: 0 | BP179: 0 | BQ179: 0 | BR179: 0 | BS179: 0 | BT179: 0 | BU179: 0 | CB179: 0 | CC179: 0 | CD179: 0 | CH179: =#VALUE! ->  | CI179: =#VALUE! -> 
C180: 0 | F180: 0 | Q180: 0 | AA180: 0 | BM180: 0 | BN180: 0 | BO180: 0 | BP180: 0 | BQ180: 0 | BR180: 0 | BS180: 0 | BT180: 0 | BU180: 0 | CB180: 0 | CC180: 0 | CD180: 0 | CH180: =#VALUE! ->  | CI180: =#VALUE! -> 
C181: 0 | F181: 0 | Q181: 0 | AA181: 0 | BM181: 0 | BN181: 0 | BO181: 0 | BP181: 0 | BQ181: 0 | BR181: 0 | BS181: 0 | BT181: 0 | BU181: 0 | CB181: 0 | CC181: 0 | CD181: 0 | CH181: =#VALUE! ->  | CI181: =#VALUE! -> 
C182: 0 | F182: 0 | Q182: 0 | AA182: 0 | BM182: 0 | BN182: 0 | BO182: 0 | BP182: 0 | BQ182: 0 | BR182: 0 | BS182: 0 | BT182: 0 | BU182: 0 | CB182: 0 | CC182: 0 | CD182: 0 | CH182: =#VALUE! ->  | CI182: =#VALUE! -> 
C183: 0 | F183: 0 | Q183: 0 | AA183: 0 | BM183: 0 | BN183: 0 | BO183: 0 | BP183: 0 | BQ183: 0 | BR183: 0 | BS183: 0 | BT183: 0 | BU183: 0 | CB183: 0 | CC183: 0 | CD183: 0 | CH183: =#VALUE! ->  | CI183: =#VALUE! -> 
C184: 0 | F184: 0 | Q184: 0 | AA184: 0 | BM184: 0 | BN184: 0 | BO184: 0 | BP184: 0 | BQ184: 0 | BR184: 0 | BS184: 0 | BT184: 0 | BU184: 0 | CB184: 0 | CC184: 0 | CD184: 0 | CH184: =#VALUE! ->  | CI184: =#VALUE! -> 
C185: 0 | F185: 0 | Q185: 0 | AA185: 0 | BM185: 0 | BN185: 0 | BO185: 0 | BP185: 0 | BQ185: 0 | BR185: 0 | BS185: 0 | BT185: 0 | BU185: 0 | CB185: 0 | CC185: 0 | CD185: 0 | CH185: =#VALUE! ->  | CI185: =#VALUE! -> 
C186: 0 | F186: 0 | Q186: 0 | AA186: 0 | BM186: 0 | BN186: 0 | BO186: 0 | BP186: 0 | BQ186: 0 | BR186: 0 | BS186: 0 | BT186: 0 | BU186: 0 | CB186: 0 | CC186: 0 | CD186: 0 | CH186: =#VALUE! ->  | CI186: =#VALUE! -> 
C187: 0 | F187: 0 | Q187: 0 | AA187: 0 | BM187: 0 | BN187: 0 | BO187: 0 | BP187: 0 | BQ187: 0 | BR187: 0 | BS187: 0 | BT187: 0 | BU187: 0 | CB187: 0 | CC187: 0 | CD187: 0 | CH187: =#VALUE! ->  | CI187: =#VALUE! -> 
C188: 0 | F188: 0 | Q188: 0 | AA188: 0 | BM188: 0 | BN188: 0 | BO188: 0 | BP188: 0 | BQ188: 0 | BR188: 0 | BS188: 0 | BT188: 0 | BU188: 0 | CB188: 0 | CC188: 0 | CD188: 0 | CH188: =#VALUE! ->  | CI188: =#VALUE! -> 
C189: 0 | F189: 0 | Q189: 0 | AA189: 0 | BM189: 0 | BN189: 0 | BO189: 0 | BP189: 0 | BQ189: 0 | BR189: 0 | BS189: 0 | BT189: 0 | BU189: 0 | CB189: 0 | CC189: 0 | CD189: 0 | CH189: =#VALUE! ->  | CI189: =#VALUE! -> 
C190: 0 | F190: 0 | Q190: 0 | AA190: 0 | BM190: 0 | BN190: 0 | BO190: 0 | BP190: 0 | BQ190: 0 | BR190: 0 | BS190: 0 | BT190: 0 | BU190: 0 | CB190: 0 | CC190: 0 | CD190: 0 | CH190: =#VALUE! ->  | CI190: =#VALUE! -> 
C191: 0 | F191: 0 | Q191: 0 | AA191: 0 | BM191: 0 | BN191: 0 | BO191: 0 | BP191: 0 | BQ191: 0 | BR191: 0 | BS191: 0 | BT191: 0 | BU191: 0 | CB191: 0 | CC191: 0 | CD191: 0 | CH191: =#VALUE! ->  | CI191: =#VALUE! -> 
C192: 0 | F192: 0 | Q192: 0 | AA192: 0 | BM192: 0 | BN192: 0 | BO192: 0 | BP192: 0 | BQ192: 0 | BR192: 0 | BS192: 0 | BT192: 0 | BU192: 0 | CB192: 0 | CC192: 0 | CD192: 0 | CH192: =#VALUE! ->  | CI192: =#VALUE! -> 
C193: 0 | F193: 0 | Q193: 0 | AA193: 0 | BM193: 0 | BN193: 0 | BO193: 0 | BP193: 0 | BQ193: 0 | BR193: 0 | BS193: 0 | BT193: 0 | BU193: 0 | CB193: 0 | CC193: 0 | CD193: 0 | CH193: =#VALUE! ->  | CI193: =#VALUE! -> 
C194: 0 | F194: 0 | Q194: 0 | AA194: 0 | BM194: 0 | BN194: 0 | BO194: 0 | BP194: 0 | BQ194: 0 | BR194: 0 | BS194: 0 | BT194: 0 | BU194: 0 | CB194: 0 | CC194: 0 | CD194: 0 | CH194: =#VALUE! ->  | CI194: =#VALUE! -> 
C195: 0 | F195: 0 | Q195: 0 | AA195: 0 | BM195: 0 | BN195: 0 | BO195: 0 | BP195: 0 | BQ195: 0 | BR195: 0 | BS195: 0 | BT195: 0 | BU195: 0 | CB195: 0 | CC195: 0 | CD195: 0 | CH195: =#VALUE! ->  | CI195: =#VALUE! -> 
C196: 0 | F196: 0 | Q196: 0 | AA196: 0 | BM196: 0 | BN196: 0 | BO196: 0 | BP196: =INT(IF(H196="عامل تعاقد",I196*25/100,IF(H196="معلم مساعد",I196*25/100,IF(H196="معلم",I196*25/100,IF(H196="معلم أول",I196*25/100,IF(H196="معلم أول أ",I196*25/100,IF(H196="خبير",I196*25/100,IF(H196="كبير",I196*25/100,)))))))) -> 0 | BQ196: =INT(IF(H196="إدارى",J196*0/100,IF(H196="معلم مساعد",I196*125/100,IF(H196="معلم",I196*75/100,IF(H196="معلم أول",I196*50/100,IF(H196="معلم أول أ",I196*25/100,IF(H196="خبير",I196*25/100,IF(H196="كبير",I196*25/100,)))))))) -> 0 | BR196: =INT(IF(H196="عامل تعاقد",I196*0.9166,IF(H196="معلم تعاقد",I196*0.9166,0))) -> 0 | BS196: =INT(IF(H196="عامل تعاقد",I196*0.5,IF(H196="معلم تعاقد",I196*0.5,0))) -> 0 | BT196: =INT(IF(F196=1,I196*0.3333,0)) -> 0 | BU196: =IF(H196="عامل تعاقد",225,IF(H196="معلم تعاقد",300,0)) -> 0 | CB196: =IF($B196>0,(SUM(R196:AD196)-50),0) -> 0 | CC196: =IF(CB196<250,(CB196*0.006),IF(CB196<500,(CB196*0.0065),IF(CB196<1000,(CB196*0.007),IF(CB196<5000,(CB196*0.0075),IF(CB196>5000,(CB196*0.008)," " ))))) -> 0 | CD196: 0 | CH196: =#VALUE! ->  | CI196: =#VALUE! -> 
C197: 0 | F197: 0 | Q197: =IF(E197="متزوج",2,IF(E197="متزوج+1",4,IF(E197="متزوج+2",6,IF(E197="متزوجة",2,0)))) -> 0 | AA197: =BU197 -> 0 | BL197: =IF(H197="معلم مساعد",10,IF(H197="معلم تعاقد",10,IF(H197="معلم",10,IF(H197="معلم أول",10,IF(H197="معلم أول أ",10,IF(H197="خبير",10,IF(H197="كبير",10,IF(H197="عامل تعاقد",0,"")))))))) ->  | BM197: =IF(H197="عقد مميز",I197*0/100,IF(H197="معلم تعاقد",I197*0/100,IF(H197="معلم",I197*50/100,IF(H197="معلم أول",I197*50/100,IF(H197="معلم أول أ",I197*50/100,IF(H197="خبير",I197*50/100,IF(H197="كبير",I197*50/100,))))))) -> 0 | BN197: =IF(H197="معلم مساعد",I197*50/100,IF(H197="عامل تعاقد",I197*0/100,IF(H197="معلم",I197*50/100,IF(H197="معلم أول",I197*50/100,IF(H197="معلم أول أ",I197*50/100,IF(H197="خبير",I197*50/100,IF(H197="كبير",I197*50/100,))))))) -> 0 | BO197: 0 | BP197: 0 | BQ197: 0 | BR197: 0 | BS197: 0 | BT197: 0 | BU197: 0 | CB197: 0 | CC197: 0 | CD197: =CEILING($CC197,0.05) -> 0 | CH197: =#VALUE! ->  | CI197: =#VALUE! -> 
C198: 0 | F198: 0 | Q198: 0 | AA198: 0 | BM198: 0 | BN198: 0 | BO198: =IF(H198="إدارى",I198*0,IF(H198="معلم مساعد",I198*0/100,IF(H198="معلم",I198*50/100,IF(H198="معلم أول",I198*75/100,IF(H198="معلم أول أ",I198*100/100,IF(H198="خبير",I198*125/100,IF(H198="كبير",I198*150/100,))))))) -> 0 | BP198: 0 | BQ198: 0 | BR198: 0 | BS198: 0 | BT198: 0 | BU198: 0 | CB198: 0 | CC198: 0 | CD198: 0 | CH198: =#VALUE! ->  | CI198: =#VALUE! -> 
C199: 0 | F199: 0 | Q199: 0 | AA199: 0 | BM199: 0 | BN199: 0 | BO199: 0 | BP199: 0 | BQ199: 0 | BR199: 0 | BS199: 0 | BT199: 0 | BU199: 0 | CB199: 0 | CC199: 0 | CD199: 0 | CH199: =#VALUE! ->  | CI199: =#VALUE! -> 
C200: =IF(D200="نقابى",1,IF(D200="حالة خاصة",2,0)) -> 0 | F200: 0 | Q200: 0 | AA200: 0 | BM200: 0 | BN200: 0 | BO200: 0 | BP200: 0 | BQ200: 0 | BR200: 0 | BS200: 0 | BT200: 0 | BU200: 0 | CB200: 0 | CC200: 0 | CD200: 0 | CH200: =#VALUE! ->  | CI200: =#VALUE! -> 
... 263 more rows

Sheet الاستمارة
N1: ='العاملين '!BA9 -> 0 | O1: كشــــــــــــــــــــــــــــــف المرتبات عن شــــــــــــــــــــــــــــــــهر / | AR1: =ورقة1!C3 -> مارس 2018 | AZ1: =ورقة1!C3 -> مارس 2018 | BG1: ســــــــــــــــــــــــــــــــنة / | BM1: =IF($CH12>0,ورقة1!$C$5,0) -> 2018 | BS1: م | BV1: كشف 1
A2: =ورقة1!C1 -> الشهداء التعليمية | AZ2: مدرسة / | BE2: =IF($CH12>0,ورقة1!$C$2," ") -> الادارة | CI2: =FLOOR(CN12,0.05) -> 0 | CV2: ='العاملين '!CA10 -> 1370 | CZ2: ='العاملين '!CA10 -> 1370
A3: 1 | C3: الاســــــــــــــــــــــــــتحـــــــــــــــــــــــــــــــــقــــــــــــــــــــــــــــــــــــــــــــــــــــــــــــــــــــــــــاقـــــــــــــــــــــــــــــــــــات | AY3: جملة الاستــــحقــاقات | AZ3: الأســـــــــــــــــــــــــــــــــــــتـــــــقـــــــــــــــــطاعـــــــــــــــــات | CF3: جملة الأستقطاعات | CG3: الصافي المستحق | CH3: الاســـــــــــــــــــم | CI3: التوقيع بالاســــــــــــتلام | CJ3: صافي الشهر السابق | CL3: اسم البنك
A4: 1 | B4: م | C4: الاجور الاســــــــــــــــــــــــــاسية | H4: الجملة | I4: الاجور المتغيرة الخاضعة بكامل قيمتها للتأمينات والمعاشات | N4: الجملة | O4: الاجور المتغيرة الاخري بنسبة % | AP4: الجملة | AQ4: ='العاملين '!CA5 -> 2800 | AR4: غير خاضع | AS4: حصص الاجور المتغيرة | AV4: الجملة | AW4: منحة | AX4: انقطاع | AZ4: لحســــــــــــــــــــاب الهيئة القوميـــــــــــــــــــــة للتـــــــــــــــــأمين الإجتـــــــــــــــــــــــــماعي | BS4: لحساب جاري دائنة مصلحة الضرائب | BV4: لحساب دائنين مختلفين
A5: 1 | AQ5: خاضع | AZ5: استقطاعات الأجور الاســــــــــــــــــاسية | BH5: استقطاعات الأجور المتغيرة | BM5: الأقساط الخاصة عن الأجور الأساسية | BS5: ضريبة دخل | BT5: دمغة عادية | BU5: دمغة نسبية
A6: 1 | C6: المرتب | D6: حصة الحكومة 15% | E6: 0.01 | F6: أل 2 % | G6: أ ل3 % | I6: علاوة 2012 | J6: علاوة 2013 | K6: علاوة 2014 | L6: علاوة 2015 | M6: علاوة 2016 | O6: ='العاملين '!P2 -> ع اجتماعية | P6: ='العاملين '!Q2 -> ع اجتماعيةاضافية | Q6: ='العاملين '!R2 -> أعباء وظيفية | R6: ='العاملين '!AA2 -> الحدالادنى | S6: ='العاملين '!S2 -> بدل نظارة | T6: ='العاملين '!T2 -> حافز مدير | U6: ='العاملين '!U2 -> بدل تفرغ | V6: ='العاملين '!V2 -> بدل تجاريين | W6: ='العاملين '!W2 -> بدل عدوي | X6: ='العاملين '!X2 -> حافز ماجستير | Y6: ='العاملين '!Y2 -> حافزدكتوراة | Z6: ='العاملين '!Z2 -> بدل تسكين | AA6: ='العاملين '!BM2 -> بدل معلم اضافى | AB6: ='العاملين '!BN2 -> بدل معلم | AC6: ='العاملين '!BO2 -> بدل اعتماد | AD6: ='العاملين '!BP2 -> حافز 25 % | AE6: ='العاملين '!BQ2 -> حافز أداء | AF6: ='العاملين '!BR2 -> الـ91.5 | AG6: ='العاملين '!BS2 -> ال50% | AH6: ='العاملين '!BT2 -> ال 33% | AI6: الاجر الوظيفي | AJ6: الاجر المكمل | AK6: الحافزالتعويضي | AL6: ='العاملين '!AD2 -> اكتب ما تشاء | AM6: ='العاملين '!AE2 -> اكتب ما تشاء | AN6: ='العاملين '!AF2 -> اكتب ما تشاء | AO6: ='العاملين '!AG2 -> اكتب ما تشاء | AS6: ألـ 15 % | AT6: ألـ 1 % | AU6: ألـ 3% | AZ6: حصة الحكومة 15% | BA6: إصابة عمل 1% | BB6: الـ 2% | BD6: حصة الموظف 10% | BE6: ال8% | BF6: ألـ 3% | BG6: ألـ 1 % | BH6: حصة الحكومة 15% | BI6: إصابة عمل 1% | BJ6: حصة الموظف 10% | BK6: ال3% | BL6: ال1% | BM6: زمالة 7 % | BN6: زمالة جماعى | BO6: نقابه | BP6: رابطة | BQ6: نادى محافظة | BR6: نادي الادارة | BV6: ='العاملين '!AP2 -> أرباب عهد | BW6: ='العاملين '!AQ2 -> خدمات عمالية | BX6: ='العاملين '!AR2 -> نقابة بحث علمى 5% | BY6: ='العاملين '!AS3 -> ناصر | BZ6: ='العاملين '!AT3 -> القاهرة | CA6: ='العاملين '!AU3 -> الاهلى | CB6: خصومات اخرى | CC6: نقابةتجاريين | CD6: ='العاملين '!AX2 -> نصف العلاوة | CE6: كسر قرش | CO6: ='العاملين '!CA10 -> 1370
A7: 1 | B7: 1 | C7: =IF($CI7>0,VLOOKUP($CI7,'العاملين '!$A$3:$AR$260,10),0) -> 16650 | D7: =ROUND(IF(C7<=$CO$6,C7*0.15,$CO$6*0.15),2) -> 205.5 | E7: =ROUND(IF(C7<$A$3,C7*$E$6,IF(C7>=$A$3,$E$6*$A$3)),2) -> 0.01 | F7: =ROUND(IF(C7<=$CO$6,C7*0.02,$CO$6*0.02),2) -> 27.4 | G7: =ROUND(IF(C7<=$CO$6,C7*0.03,$CO$6*0.03),2) -> 41.1 | H7: =IF($C7>0,SUM(C7:G7)," ") -> 16924.01 | I7: =IF($CI7>0,VLOOKUP($CI7,'العاملين '!$A$3:$AR$260,11),0) -> 0 | J7: =IF($CI7>0,VLOOKUP($CI7,'العاملين '!$A$3:$AR$260,12),0) -> 62.23 | K7: =IF($CI7>0,VLOOKUP($CI7,'العاملين '!$A$3:$AR$260,13),0) -> 62.73 | L7: =IF($CI7>0,VLOOKUP($CI7,'العاملين '!$A$3:$AR$260,14),0) -> 66.69 | M7: =IF($CI7>0,VLOOKUP($CI7,'العاملين '!$A$3:$AR$260,15),0) -> 0 | N7: =IF($C7>0,SUM(I7:M7),0) -> 191.65 | O7: =IF($CI7>0,VLOOKUP($CI7,'العاملين '!$A$3:$AR$260,16),0) -> 4 | P7: =IF($CI7>0,VLOOKUP($CI7,'العاملين '!$A$3:$AR$260,17),0) -> 6 | Q7: =IF($CI7>0,VLOOKUP($CI7,'العاملين '!$A$3:$AR$260,18),0) -> 350 | R7: =IF($CI7>0,VLOOKUP($CI7,'العاملين '!$A$3:$AR$260,27),0) -> 0 | S7: =IF($CI7>0,VLOOKUP($CI7,'العاملين '!$A$3:$AR$260,19),0) -> 0 | T7: =IF($CI7>0,VLOOKUP($CI7,'العاملين '!$A$3:$AR$260,20),0) -> 0 | U7: =IF($CI7>0,VLOOKUP($CI7,'العاملين '!$A$3:$AR$260,21),0) -> 0 | V7: =IF($CI7>0,VLOOKUP($CI7,'العاملين '!$A$3:$AR$260,22),0) -> 0 | W7: =IF($CI7>0,VLOOKUP($CI7,'العاملين '!$A$3:$AR$260,23),0) ->  | X7: =IF($CI7>0,VLOOKUP($CI7,'العاملين '!$A$3:$AR$260,24),0) -> 0 | Y7: =IF($CI7>0,VLOOKUP($CI7,'العاملين '!$A$3:$AR$260,25),0) -> 0 | Z7: =IF($CI7>0,VLOOKUP($CI7,'العاملين '!$A$3:$AR$260,26),0) -> 0 | AA7: =IF($CI7>0,VLOOKUP($CI7,'العاملين '!$A$3:$CR$260,65),0) -> 333.49 | AB7: =IF($CI7>0,VLOOKUP($CI7,'العاملين '!$A$3:$CR$260,66),0) -> 333.49 | AC7: =IF($CI7>0,VLOOKUP($CI7,'العاملين '!$A$3:$CR$260,67),0) -> 333.49 | AD7: =IF($CI7>0,VLOOKUP($CI7,'العاملين '!$A$3:$CR$260,68),0) -> 166 | AE7: =IF($CI7>0,VLOOKUP($CI7,'العاملين '!$A$3:$CR$260,69),0) -> 500 | AF7: =IF($CI7>0,VLOOKUP($CI7,'العاملين '!$A$3:$CR$260,70),0) -> 0 | AG7: =IF($CI7>0,VLOOKUP($CI7,'العاملين '!$A$3:$CR$260,71),0) -> 0 | AH7: =IF($CI7>0,VLOOKUP($CI7,'العاملين '!$A$3:$CR$260,72),0) -> 0 | AO7: =IF($CI7>0,VLOOKUP($CI7,'العاملين '!$A$3:$AR$260,25),0) -> 0 | AP7: =SUM(N7:AO7) -> 2218.12 | AQ7: =IF(AP7>$AQ$4,$AQ$4,AP7) -> 2218.12 | AR7: =AP7-AQ7 -> 0 | AS7: =ROUND(($AQ7)*15%,2) -> 332.72 | AT7: =ROUND(($AQ7)*1%,2) -> 22.18 | AU7: =ROUND(($AQ7)*3%,2) -> 66.54 | AV7: =SUM(AS7:AU7) -> 421.44 | AW7: =IF($CI7>0,VLOOKUP($CI7,'العاملين '!$A$3:$CR$260,64),0) -> 10 | AX7: =IF($CI7>0,VLOOKUP($CI7,'العاملين '!$A$3:$CR$260,52),0) ->  | AY7: =SUM(AW7,AV7,AP7,H7,AX7) -> 19573.57 | AZ7: =ROUND(IF(C7<=$CO$6,C7*0.15,$CO$6*0.15),2) -> 205.5 | BA7: =ROUND(IF(C7<=$CO$6,C7*0.01,$CO$6*0.01),2) -> 13.7 | BB7: =ROUND(IF(C7<=$CO$6,C7*0.02,$CO$6*0.02),2) -> 27.4 | BD7: =IF($C7>0,ROUND(($C7)*10%,2)," ") -> 1665 | BE7: =ROUND(IF(C7<=$CO$6,C7*0.08,$CO$6*0.08),2) -> 109.6 | BF7: =ROUND(IF(C7<=$CO$6,C7*0.03,$CO$6*0.03),2) -> 41.1 | BG7: =ROUND(IF(C7<=$CO$6,C7*0.01,$CO$6*0.01),2) -> 13.7 | BH7: =AS7 -> 332.72 | BI7: 22.18 | BJ7: =ROUND(($AQ7)*10%,2) -> 221.81 | BK7: =AU7 -> 66.54 | BL7: =AT7 -> 22.18 | BM7: =IF($CK7=1,ROUND(($C7)*7%,2),IF($CK7=2,VLOOKUP($CI7,'العاملين '!$A$3:$CT$260,53),0)) -> 1165.5 | BN7: =IF($CK7=1,0.5,IF($CK7=2,VLOOKUP($CI7,'العاملين '!$A$3:$CS$260,54),0)) -> 0.5 | BO7: =IF($CK7=1,4.5,IF($CK7=2,VLOOKUP($CI7,'العاملين '!$A$3:$CT$260,55),0)) -> 4.5 | BP7: =IF($CI7>0,VLOOKUP($CI7,'العاملين '!$A$3:$AR$260,38),0) -> 1 | BQ7: =IF($CK7=1,0.2,IF($CK7=2,VLOOKUP($CI7,'العاملين '!$A$3:$CT$260,55),0)) -> 0.2 | BR7: =IF($CK7=1,0.05,IF($CK7=2,VLOOKUP($CI7,'العاملين '!$A$3:$CT$260,55),0)) -> 0.05 | BS7: =IF($CI7>0,VLOOKUP($CI7,'العاملين '!$A$3:$AR$260,39),0) -> 7.25 | BT7: =IF($CI7>0,VLOOKUP($CI7,'العاملين '!$A$3:$AR$260,40),0) -> 15.45 | BU7: =IF($CI7>0,VLOOKUP($CI7,'العاملين '!$A$3:$AR$260,41),0) -> 0 | BV7: =IF($CI7>0,VLOOKUP($CI7,'العاملين '!$A$3:$AR$260,42),0) -> 0 | BW7: =IF($CI7>0,VLOOKUP($CI7,'العاملين '!$A$3:$AR$260,43),0) -> 0 | BX7: =IF($CI7>0,VLOOKUP($CI7,'العاملين '!$A$3:$AR$260,44),0) -> 0 | BY7: =IF($CI7>0,VLOOKUP($CI7,'العاملين '!$A$3:$CR$260,45),0) -> 0 | BZ7: =IF($CI7>0,VLOOKUP($CI7,'العاملين '!$A$3:$CR$260,46),0) -> 0 | CA7: =IF($CI7>0,VLOOKUP($CI7,'العاملين '!$A$3:$CR$260,47),0) -> 0 | CB7: =IF($CI7>0,VLOOKUP($CI7,'العاملين '!$A$3:$CR$260,48),0) -> 0 | CD7: =IF($CI7>0,VLOOKUP($CI7,'العاملين '!$A$3:$AR$260,41),0) -> 0 | CE7: =CM7-CG7 -> 0.04 | CF7: =SUM(AZ7:CE7) -> 3935.92 | CG7: =FLOOR(CM7,0.05) -> 15637.65 | CH7: =IF($CI7>0,VLOOKUP($CI7,'العاملين '!$A$3:$AR$260,2),0) -> محمد1 | CI7: 1 | CK7: =IF($CI7>0,VLOOKUP($CI7,'العاملين '!$A$3:$CR$260,3),0) -> 1 | CL7: =IF($CI7>0,VLOOKUP($CI7,'العاملين '!$A$3:$CR$260,49),0) -> khwv | CM7: =AY7-SUM(AZ7:CD7) -> 15637.69 | CO7: ='العاملين '!BA10 -> 0
A8: 0 | B8: 2 | C8: =IF($CI8>0,VLOOKUP($CI8,'العاملين '!$A$3:$AR$260,10),0) -> 16650 | D8: =ROUND(IF(C8<=$CO$6,C8*0.15,$CO$6*0.15),2) -> 205.5 | E8: =ROUND(IF(C8<$A$3,C8*$E$6,IF(C8>=$A$3,$E$6*$A$3)),2) -> 0.01 | F8: =ROUND(IF(C8<=$CO$6,C8*0.02,$CO$6*0.02),2) -> 27.4 | G8: =ROUND(IF(C8<=$CO$6,C8*0.03,$CO$6*0.03),2) -> 41.1 | H8: =IF($C8>0,SUM(C8:G8)," ") -> 16924.01 | I8: =IF($CI8>0,VLOOKUP($CI8,'العاملين '!$A$3:$AR$260,11),0) -> 0 | J8: =IF($CI8>0,VLOOKUP($CI8,'العاملين '!$A$3:$AR$260,12),0) -> 62.23 | K8: =IF($CI8>0,VLOOKUP($CI8,'العاملين '!$A$3:$AR$260,13),0) -> 62.73 | L8: =IF($CI8>0,VLOOKUP($CI8,'العاملين '!$A$3:$AR$260,14),0) -> 66.69 | M8: =IF($CI8>0,VLOOKUP($CI8,'العاملين '!$A$3:$AR$260,15),0) -> 0 | N8: =IF($C8>0,SUM(I8:M8),0) -> 191.65 | O8: =IF($CI8>0,VLOOKUP($CI8,'العاملين '!$A$3:$AR$260,16),0) -> 4 | P8: =IF($CI8>0,VLOOKUP($CI8,'العاملين '!$A$3:$AR$260,17),0) -> 6 | Q8: =IF($CI8>0,VLOOKUP($CI8,'العاملين '!$A$3:$AR$260,18),0) -> 350 | R8: =IF($CI8>0,VLOOKUP($CI8,'العاملين '!$A$3:$AR$260,27),0) -> 0 | S8: =IF($CI8>0,VLOOKUP($CI8,'العاملين '!$A$3:$AR$260,19),0) -> 0 | T8: =IF($CI8>0,VLOOKUP($CI8,'العاملين '!$A$3:$AR$260,20),0) -> 0 | U8: =IF($CI8>0,VLOOKUP($CI8,'العاملين '!$A$3:$AR$260,21),0) -> 0 | V8: =IF($CI8>0,VLOOKUP($CI8,'العاملين '!$A$3:$AR$260,22),0) -> 0 | W8: =IF($CI8>0,VLOOKUP($CI8,'العاملين '!$A$3:$AR$260,23),0) ->  | X8: =IF($CI8>0,VLOOKUP($CI8,'العاملين '!$A$3:$AR$260,24),0) -> 0 | Y8: =IF($CI8>0,VLOOKUP($CI8,'العاملين '!$A$3:$AR$260,25),0) -> 0 | Z8: =IF($CI8>0,VLOOKUP($CI8,'العاملين '!$A$3:$AR$260,26),0) -> 0 | AA8: =IF($CI8>0,VLOOKUP($CI8,'العاملين '!$A$3:$CR$260,65),0) -> 333.49 | AB8: =IF($CI8>0,VLOOKUP($CI8,'العاملين '!$A$3:$CR$260,66),0) -> 333.49 | AC8: =IF($CI8>0,VLOOKUP($CI8,'العاملين '!$A$3:$CR$260,67),0) -> 333.49 | AD8: =IF($CI8>0,VLOOKUP($CI8,'العاملين '!$A$3:$CR$260,68),0) -> 166 | AE8: =IF($CI8>0,VLOOKUP($CI8,'العاملين '!$A$3:$CR$260,69),0) -> 500 | AF8: =IF($CI8>0,VLOOKUP($CI8,'العاملين '!$A$3:$CR$260,70),0) -> 0 | AG8: =IF($CI8>0,VLOOKUP($CI8,'العاملين '!$A$3:$CR$260,71),0) -> 0 | AH8: =IF($CI8>0,VLOOKUP($CI8,'العاملين '!$A$3:$CR$260,72),0) -> 0 | AO8: =IF($CI8>0,VLOOKUP($CI8,'العاملين '!$A$3:$AR$260,25),0) -> 0 | AP8: =SUM(N8:AO8) -> 2218.12 | AQ8: =IF(AP8>$AQ$4,$AQ$4,AP8) -> 2218.12 | AR8: =AP8-AQ8 -> 0 | AS8: =ROUND(($AQ8)*15%,2) -> 332.72 | AT8: =ROUND(($AQ8)*1%,2) -> 22.18 | AU8: =ROUND(($AQ8)*3%,2) -> 66.54 | AV8: =SUM(AS8:AU8) -> 421.44 | AW8: =IF($CI8>0,VLOOKUP($CI8,'العاملين '!$A$3:$CR$260,64),0) -> 10 | AX8: =IF($CI8>0,VLOOKUP($CI8,'العاملين '!$A$3:$CR$260,52),0) ->  | AY8: =SUM(AW8,AV8,AP8,H8,AX8) -> 19573.57 | AZ8: =ROUND(IF(C8<=$CO$6,C8*0.15,$CO$6*0.15),2) -> 205.5 | BA8: =ROUND(IF(C8<=$CO$6,C8*0.01,$CO$6*0.01),2) -> 13.7 | BB8: =ROUND(IF(C8<=$CO$6,C8*0.02,$CO$6*0.02),2) -> 27.4 | BD8: =IF($C8>0,ROUND(($C8)*10%,2)," ") -> 1665 | BE8: =ROUND(IF(C8<=$CO$6,C8*0.08,$CO$6*0.08),2) -> 109.6 | BF8: =ROUND(IF(C8<=$CO$6,C8*0.03,$CO$6*0.03),2) -> 41.1 | BG8: =ROUND(IF(C8<=$CO$6,C8*0.01,$CO$6*0.01),2) -> 13.7 | BH8: 332.72 | BI8: 22.18 | BJ8: =ROUND(($AQ8)*10%,2) -> 221.81 | BK8: =AU8 -> 66.54 | BL8: =AT8 -> 22.18 | BM8: =IF($CK8=1,ROUND(($C8)*7%,2),IF($CK8=2,VLOOKUP($CI8,'العاملين '!$A$3:$CT$260,53),0)) -> 1165.5 | BN8: =IF($CK8=1,0.5,IF($CK8=2,VLOOKUP($CI8,'العاملين '!$A$3:$CS$260,54),0)) -> 0.5 | BO8: =IF($CK8=1,4.5,IF($CK8=2,VLOOKUP($CI8,'العاملين '!$A$3:$CT$260,55),0)) -> 4.5 | BP8: =IF($CI8>0,VLOOKUP($CI8,'العاملين '!$A$3:$AR$260,38),0) -> 1 | BQ8: =IF($CK8=1,0.2,IF($CK8=2,VLOOKUP($CI8,'العاملين '!$A$3:$CT$260,55),0)) -> 0.2 | BR8: =IF($CK8=1,0.05,IF($CK8=2,VLOOKUP($CI8,'العاملين '!$A$3:$CT$260,55),0)) -> 0.05 | BS8: =IF($CI8>0,VLOOKUP($CI8,'العاملين '!$A$3:$AR$260,39),0) -> 7.25 | BT8: =IF($CI8>0,VLOOKUP($CI8,'العاملين '!$A$3:$AR$260,40),0) -> 15.45 | BU8: =IF($CI8>0,VLOOKUP($CI8,'العاملين '!$A$3:$AR$260,41),0) -> 0 | BV8: =IF($CI8>0,VLOOKUP($CI8,'العاملين '!$A$3:$AR$260,42),0) -> 0 | BW8: =IF($CI8>0,VLOOKUP($CI8,'العاملين '!$A$3:$AR$260,43),0) -> 0 | BX8: =IF($CI8>0,VLOOKUP($CI8,'العاملين '!$A$3:$AR$260,44),0) -> 0 | BY8: =IF($CI8>0,VLOOKUP($CI8,'العاملين '!$A$3:$CR$260,45),0) -> 0 | BZ8: =IF($CI8>0,VLOOKUP($CI8,'العاملين '!$A$3:$CR$260,46),0) -> 0 | CA8: =IF($CI8>0,VLOOKUP($CI8,'العاملين '!$A$3:$CR$260,47),0) -> 0 | CB8: =IF($CI8>0,VLOOKUP($CI8,'العاملين '!$A$3:$CR$260,48),0) -> 0 | CD8: =IF($CI8>0,VLOOKUP($CI8,'العاملين '!$A$3:$AR$260,41),0) -> 0 | CE8: =CM8-CG8 -> 0.04 | CF8: =SUM(AZ8:CE8) -> 3935.92 | CG8: =FLOOR(CM8,0.05) -> 15637.65 | CH8: =IF($CI8>0,VLOOKUP($CI8,'العاملين '!$A$3:$AR$260,2),0) -> محمد1 | CI8: 1 | CK8: =IF($CI8>0,VLOOKUP($CI8,'العاملين '!$A$3:$CR$260,3),0) -> 1 | CL8: =IF($CI8>0,VLOOKUP($CI8,'العاملين '!$A$3:$CR$260,49),0) -> khwv | CM8: =AY8-SUM(AZ8:CD8) -> 15637.69
A9: 0 | B9: 3 | C9: =IF($CI9>0,VLOOKUP($CI9,'العاملين '!$A$3:$AR$260,10),0) -> 16650 | D9: =ROUND(IF(C9<=$CO$6,C9*0.15,$CO$6*0.15),2) -> 205.5 | E9: =ROUND(IF(C9<$A$3,C9*$E$6,IF(C9>=$A$3,$E$6*$A$3)),2) -> 0.01 | F9: =ROUND(IF(C9<=$CO$6,C9*0.02,$CO$6*0.02),2) -> 27.4 | G9: =ROUND(IF(C9<=$CO$6,C9*0.03,$CO$6*0.03),2) -> 41.1 | H9: =IF($C9>0,SUM(C9:G9)," ") -> 16924.01 | I9: =IF($CI9>0,VLOOKUP($CI9,'العاملين '!$A$3:$AR$260,11),0) -> 0 | J9: =IF($CI9>0,VLOOKUP($CI9,'العاملين '!$A$3:$AR$260,12),0) -> 62.23 | K9: =IF($CI9>0,VLOOKUP($CI9,'العاملين '!$A$3:$AR$260,13),0) -> 62.73 | L9: =IF($CI9>0,VLOOKUP($CI9,'العاملين '!$A$3:$AR$260,14),0) -> 66.69 | M9: =IF($CI9>0,VLOOKUP($CI9,'العاملين '!$A$3:$AR$260,15),0) -> 0 | N9: =IF($C9>0,SUM(I9:M9),0) -> 191.65 | O9: =IF($CI9>0,VLOOKUP($CI9,'العاملين '!$A$3:$AR$260,16),0) -> 4 | P9: =IF($CI9>0,VLOOKUP($CI9,'العاملين '!$A$3:$AR$260,17),0) -> 6 | Q9: =IF($CI9>0,VLOOKUP($CI9,'العاملين '!$A$3:$AR$260,18),0) -> 350 | R9: =IF($CI9>0,VLOOKUP($CI9,'العاملين '!$A$3:$AR$260,27),0) -> 0 | S9: =IF($CI9>0,VLOOKUP($CI9,'العاملين '!$A$3:$AR$260,19),0) -> 0 | T9: =IF($CI9>0,VLOOKUP($CI9,'العاملين '!$A$3:$AR$260,20),0) -> 0 | U9: =IF($CI9>0,VLOOKUP($CI9,'العاملين '!$A$3:$AR$260,21),0) -> 0 | V9: =IF($CI9>0,VLOOKUP($CI9,'العاملين '!$A$3:$AR$260,22),0) -> 0 | W9: =IF($CI9>0,VLOOKUP($CI9,'العاملين '!$A$3:$AR$260,23),0) ->  | X9: =IF($CI9>0,VLOOKUP($CI9,'العاملين '!$A$3:$AR$260,24),0) -> 0 | Y9: =IF($CI9>0,VLOOKUP($CI9,'العاملين '!$A$3:$AR$260,25),0) -> 0 | Z9: =IF($CI9>0,VLOOKUP($CI9,'العاملين '!$A$3:$AR$260,26),0) -> 0 | AA9: =IF($CI9>0,VLOOKUP($CI9,'العاملين '!$A$3:$CR$260,65),0) -> 333.49 | AB9: =IF($CI9>0,VLOOKUP($CI9,'العاملين '!$A$3:$CR$260,66),0) -> 333.49 | AC9: =IF($CI9>0,VLOOKUP($CI9,'العاملين '!$A$3:$CR$260,67),0) -> 333.49 | AD9: =IF($CI9>0,VLOOKUP($CI9,'العاملين '!$A$3:$CR$260,68),0) -> 166 | AE9: =IF($CI9>0,VLOOKUP($CI9,'العاملين '!$A$3:$CR$260,69),0) -> 500 | AF9: =IF($CI9>0,VLOOKUP($CI9,'العاملين '!$A$3:$CR$260,70),0) -> 0 | AG9: =IF($CI9>0,VLOOKUP($CI9,'العاملين '!$A$3:$CR$260,71),0) -> 0 | AH9: =IF($CI9>0,VLOOKUP($CI9,'العاملين '!$A$3:$CR$260,72),0) -> 0 | AO9: =IF($CI9>0,VLOOKUP($CI9,'العاملين '!$A$3:$AR$260,25),0) -> 0 | AP9: =SUM(N9:AO9) -> 2218.12 | AQ9: =IF(AP9>$AQ$4,$AQ$4,AP9) -> 2218.12 | AR9: =AP9-AQ9 -> 0 | AS9: =ROUND(($AQ9)*15%,2) -> 332.72 | AT9: =ROUND(($AQ9)*1%,2) -> 22.18 | AU9: =ROUND(($AQ9)*3%,2) -> 66.54 | AV9: =SUM(AS9:AU9) -> 421.44 | AW9: =IF($CI9>0,VLOOKUP($CI9,'العاملين '!$A$3:$CR$260,64),0) -> 10 | AX9: =IF($CI9>0,VLOOKUP($CI9,'العاملين '!$A$3:$CR$260,52),0) ->  | AY9: =SUM(AW9,AV9,AP9,H9,AX9) -> 19573.57 | AZ9: =ROUND(IF(C9<=$CO$6,C9*0.15,$CO$6*0.15),2) -> 205.5 | BA9: =ROUND(IF(C9<=$CO$6,C9*0.01,$CO$6*0.01),2) -> 13.7 | BB9: =ROUND(IF(C9<=$CO$6,C9*0.02,$CO$6*0.02),2) -> 27.4 | BD9: =IF($C9>0,ROUND(($C9)*10%,2)," ") -> 1665 | BE9: =ROUND(IF(C9<=$CO$6,C9*0.08,$CO$6*0.08),2) -> 109.6 | BF9: =ROUND(IF(C9<=$CO$6,C9*0.03,$CO$6*0.03),2) -> 41.1 | BG9: =ROUND(IF(C9<=$CO$6,C9*0.01,$CO$6*0.01),2) -> 13.7 | BH9: 332.72 | BI9: 22.18 | BJ9: =ROUND(($AQ9)*10%,2) -> 221.81 | BK9: =AU9 -> 66.54 | BL9: =AT9 -> 22.18 | BM9: =IF($CK9=1,ROUND(($C9)*7%,2),IF($CK9=2,VLOOKUP($CI9,'العاملين '!$A$3:$CT$260,53),0)) -> 1165.5 | BN9: =IF($CK9=1,0.5,IF($CK9=2,VLOOKUP($CI9,'العاملين '!$A$3:$CS$260,54),0)) -> 0.5 | BO9: =IF($CK9=1,4.5,IF($CK9=2,VLOOKUP($CI9,'العاملين '!$A$3:$CT$260,55),0)) -> 4.5 | BP9: =IF($CI9>0,VLOOKUP($CI9,'العاملين '!$A$3:$AR$260,38),0) -> 1 | BQ9: =IF($CK9=1,0.2,IF($CK9=2,VLOOKUP($CI9,'العاملين '!$A$3:$CT$260,55),0)) -> 0.2 | BR9: =IF($CK9=1,0.05,IF($CK9=2,VLOOKUP($CI9,'العاملين '!$A$3:$CT$260,55),0)) -> 0.05 | BS9: =IF($CI9>0,VLOOKUP($CI9,'العاملين '!$A$3:$AR$260,39),0) -> 7.25 | BT9: =IF($CI9>0,VLOOKUP($CI9,'العاملين '!$A$3:$AR$260,40),0) -> 15.45 | BU9: =IF($CI9>0,VLOOKUP($CI9,'العاملين '!$A$3:$AR$260,41),0) -> 0 | BV9: =IF($CI9>0,VLOOKUP($CI9,'العاملين '!$A$3:$AR$260,42),0) -> 0 | BW9: =IF($CI9>0,VLOOKUP($CI9,'العاملين '!$A$3:$AR$260,43),0) -> 0 | BX9: =IF($CI9>0,VLOOKUP($CI9,'العاملين '!$A$3:$AR$260,44),0) -> 0 | BY9: =IF($CI9>0,VLOOKUP($CI9,'العاملين '!$A$3:$CR$260,45),0) -> 0 | BZ9: =IF($CI9>0,VLOOKUP($CI9,'العاملين '!$A$3:$CR$260,46),0) -> 0 | CA9: =IF($CI9>0,VLOOKUP($CI9,'العاملين '!$A$3:$CR$260,47),0) -> 0 | CB9: =IF($CI9>0,VLOOKUP($CI9,'العاملين '!$A$3:$CR$260,48),0) -> 0 | CD9: =IF($CI9>0,VLOOKUP($CI9,'العاملين '!$A$3:$AR$260,41),0) -> 0 | CE9: =CM9-CG9 -> 0.04 | CF9: =SUM(AZ9:CE9) -> 3935.92 | CG9: =FLOOR(CM9,0.05) -> 15637.65 | CH9: =IF($CI9>0,VLOOKUP($CI9,'العاملين '!$A$3:$AR$260,2),0) -> محمد1 | CI9: 1 | CK9: =IF($CI9>0,VLOOKUP($CI9,'العاملين '!$A$3:$CR$260,3),0) -> 1 | CL9: =IF($CI9>0,VLOOKUP($CI9,'العاملين '!$A$3:$CR$260,49),0) -> khwv | CM9: =AY9-SUM(AZ9:CD9) -> 15637.69
A10: 0 | B10: الجملة | C10: =SUM(C7:C9) -> 49950 | D10: =SUM(D7:D9) -> 616.5 | E10: 0.03 | F10: 82.2 | G10: 123.3 | H10: 50772.03 | I10: 0 | J10: 186.69 | K10: 188.19 | L10: 200.07 | M10: 0 | N10: 574.95 | O10: 12 | P10: 18 | Q10: 1050 | R10: 0 | S10: 0 | T10: 0 | U10: 0 | V10: 0 | W10: 0 | X10: 0 | Y10: 0 | Z10: 0 | AA10: 1000.47 | AB10: 1000.47 | AC10: 1000.47 | AD10: 498 | AE10: 1500 | AF10: 0 | AG10: 0 | AH10: 0 | AI10: 0 | AJ10: 0 | AK10: 0 | AL10: 0 | AM10: 0 | AN10: 0 | AO10: 0 | AP10: 6654.36 | AQ10: 6654.36 | AR10: 0 | AS10: 998.16 | AT10: 66.54 | AU10: 199.62 | AV10: 1264.32 | AW10: 30 | AX10: 0 | AY10: 58720.71 | AZ10: 616.5 | BA10: 41.1 | BB10: 82.2 | BC10: 0 | BD10: 4995 | BE10: 328.8 | BF10: 123.3 | BG10: 41.1 | BH10: 998.16 | BI10: 66.54 | BJ10: 665.43 | BK10: 199.62 | BL10: 66.54 | BM10: 3496.5 | BN10: 1.5 | BO10: 13.5 | BP10: =SUM(BP7:BP9) -> 3 | BQ10: 0.6 | BR10: 0.15 | BS10: 21.75 | BT10: 46.35 | BU10: 0 | BV10: 0 | BW10: 0 | BX10: 0 | BY10: 0 | BZ10: 0 | CA10: 0 | CB10: 0 | CC10: 0 | CD10: 0 | CE10: 0.12 | CF10: 11807.76 | CG10: 46912.95 | CH10: الجملة | CK10: =IF($CI10>0,VLOOKUP($CI10,'العاملين '!$A$3:$CR$260,3),0) -> 0 | CL10: =IF($CI10>0,VLOOKUP($CI10,'العاملين '!$A$3:$CR$260,49),0) -> 0 | CM10: 46913.07
A11: 0 | B11: استمارة9 | C11: =#REF! ->  | D11: =#REF! ->  | E11: =#REF! ->  | F11: =#REF! ->  | G11: =#REF! ->  | H11: =#REF! ->  | I11: =#REF! ->  | J11: =#REF! ->  | K11: =#REF! ->  | L11: =#REF! ->  | M11: =#REF! ->  | N11: =#REF! ->  | O11: =#REF! ->  | P11: =#REF! ->  | Q11: =#REF! ->  | R11: =#REF! ->  | S11: =#REF! ->  | T11: =#REF! ->  | U11: =#REF! ->  | V11: =#REF! ->  | W11: =#REF! ->  | X11: =#REF! ->  | Y11: =#REF! ->  | Z11: =#REF! ->  | AA11: =#REF! ->  | AB11: =#REF! ->  | AC11: =#REF! ->  | AD11: =#REF! ->  | AE11: =#REF! ->  | AF11: =#REF! ->  | AG11: =#REF! ->  | AH11: =#REF! ->  | AI11: =#REF! ->  | AJ11: =#REF! ->  | AK11: =#REF! ->  | AL11: =#REF! ->  | AM11: =#REF! ->  | AN11: =#REF! ->  | AO11: =#REF! ->  | AP11: =#REF! ->  | AQ11: =#REF! ->  | AR11: =#REF! ->  | AS11: =#REF! ->  | AT11: =#REF! ->  | AU11: =#REF! ->  | AV11: =#REF! ->  | AW11: =#REF! ->  | AX11: =#REF! ->  | AY11: =#REF! ->  | AZ11: =#REF! ->  | BA11: =#REF! ->  | BB11: =#REF! ->  | BC11: =#REF! ->  | BD11: =#REF! ->  | BE11: =#REF! ->  | BF11: =#REF! ->  | BG11: =#REF! ->  | BH11: =#REF! ->  | BI11: =#REF! ->  | BJ11: =#REF! ->  | BK11: =#REF! ->  | BL11: =#REF! ->  | BM11: =#REF! ->  | BN11: =#REF! ->  | BO11: =#REF! ->  | BP11: =#REF! ->  | BQ11: =#REF! ->  | BR11: =#REF! ->  | BS11: =#REF! ->  | BT11: =#REF! ->  | BU11: =#REF! ->  | BV11: =#REF! ->  | BW11: =#REF! ->  | BX11: =#REF! ->  | BY11: =#REF! ->  | BZ11: =#REF! ->  | CA11: =#REF! ->  | CB11: =#REF! ->  | CC11: =#REF! ->  | CD11: =#REF! ->  | CE11: =#REF! ->  | CF11: =#REF! ->  | CG11: =#REF! ->  | CH11: جملة كشف 9 | CI11: 0 | CK11: =IF($CI11>0,VLOOKUP($CI11,'العاملين '!$A$3:$CR$260,3),0) -> 0 | CL11: =IF($CI11>0,VLOOKUP($CI11,'العاملين '!$A$3:$CR$260,49),0) -> 0 | CM11: =AY11-SUM(AZ11:CD11) -> 
A12: 0 | B12: استمارة8 | C12: =#REF! ->  | D12: =#REF! ->  | E12: =#REF! ->  | F12: =#REF! ->  | G12: =#REF! ->  | H12: =#REF! ->  | I12: =#REF! ->  | J12: =#REF! ->  | K12: =#REF! ->  | L12: =#REF! ->  | M12: =#REF! ->  | N12: =#REF! ->  | O12: =#REF! ->  | P12: =#REF! ->  | Q12: =#REF! ->  | R12: =#REF! ->  | S12: =#REF! ->  | T12: =#REF! ->  | U12: =#REF! ->  | V12: =#REF! ->  | W12: =#REF! ->  | X12: =#REF! ->  | Y12: =#REF! ->  | Z12: =#REF! ->  | AA12: =#REF! ->  | AB12: =#REF! ->  | AC12: =#REF! ->  | AD12: =#REF! ->  | AE12: =#REF! ->  | AF12: =#REF! ->  | AG12: =#REF! ->  | AH12: =#REF! ->  | AI12: =#REF! ->  | AJ12: =#REF! ->  | AK12: =#REF! ->  | AL12: =#REF! ->  | AM12: =#REF! ->  | AN12: =#REF! ->  | AO12: =#REF! ->  | AP12: =#REF! ->  | AQ12: =#REF! ->  | AR12: =#REF! ->  | AS12: =#REF! ->  | AT12: =#REF! ->  | AU12: =#REF! ->  | AV12: =#REF! ->  | AW12: =#REF! ->  | AX12: =#REF! ->  | AY12: =#REF! ->  | AZ12: =#REF! ->  | BA12: =#REF! ->  | BB12: =#REF! ->  | BC12: =#REF! ->  | BD12: =#REF! ->  | BE12: =#REF! ->  | BF12: =#REF! ->  | BG12: =#REF! ->  | BH12: =#REF! ->  | BI12: =#REF! ->  | BJ12: =#REF! ->  | BK12: =#REF! ->  | BL12: =#REF! ->  | BM12: =#REF! ->  | BN12: =#REF! ->  | BO12: =#REF! ->  | BP12: =#REF! ->  | BQ12: =#REF! ->  | BR12: =#REF! ->  | BS12: =#REF! ->  | BT12: =#REF! ->  | BU12: =#REF! ->  | BV12: =#REF! ->  | BW12: =#REF! ->  | BX12: =#REF! ->  | BY12: =#REF! ->  | BZ12: =#REF! ->  | CA12: =#REF! ->  | CB12: =#REF! ->  | CC12: =#REF! ->  | CD12: =#REF! ->  | CE12: =#REF! ->  | CF12: =#REF! ->  | CG12: =#REF! ->  | CH12: جملة كشف 8 | CI12: 0 | CK12: =IF($CI12>0,VLOOKUP($CI12,'العاملين '!$A$3:$CR$260,3),0) -> 0 | CL12: =IF($CI12>0,VLOOKUP($CI12,'العاملين '!$A$3:$CR$260,49),0) -> 0
A13: 0 | B13: استمارة7 | C13: =#REF! ->  | D13: =#REF! ->  | E13: =#REF! ->  | F13: =#REF! ->  | G13: =#REF! ->  | H13: =#REF! ->  | I13: =#REF! ->  | J13: =#REF! ->  | K13: =#REF! ->  | L13: =#REF! ->  | M13: =#REF! ->  | N13: =#REF! ->  | O13: =#REF! ->  | P13: =#REF! ->  | Q13: =#REF! ->  | R13: =#REF! ->  | S13: =#REF! ->  | T13: =#REF! ->  | U13: =#REF! ->  | V13: =#REF! ->  | W13: =#REF! ->  | X13: =#REF! ->  | Y13: =#REF! ->  | Z13: =#REF! ->  | AA13: =#REF! ->  | AB13: =#REF! ->  | AC13: =#REF! ->  | AD13: =#REF! ->  | AE13: =#REF! ->  | AF13: =#REF! ->  | AG13: =#REF! ->  | AH13: =#REF! ->  | AI13: =#REF! ->  | AJ13: =#REF! ->  | AK13: =#REF! ->  | AL13: =#REF! ->  | AM13: =#REF! ->  | AN13: =#REF! ->  | AO13: =#REF! ->  | AP13: =#REF! ->  | AQ13: =#REF! ->  | AR13: =#REF! ->  | AS13: =#REF! ->  | AT13: =#REF! ->  | AU13: =#REF! ->  | AV13: =#REF! ->  | AW13: =#REF! ->  | AX13: =#REF! ->  | AY13: =#REF! ->  | AZ13: =#REF! ->  | BA13: =#REF! ->  | BB13: =#REF! ->  | BC13: =#REF! ->  | BD13: =#REF! ->  | BE13: =#REF! ->  | BF13: =#REF! ->  | BG13: =#REF! ->  | BH13: =#REF! ->  | BI13: =#REF! ->  | BJ13: =#REF! ->  | BK13: =#REF! ->  | BL13: =#REF! ->  | BM13: =#REF! ->  | BN13: =#REF! ->  | BO13: =#REF! ->  | BP13: =#REF! ->  | BQ13: =#REF! ->  | BR13: =#REF! ->  | BS13: =#REF! ->  | BT13: =#REF! ->  | BU13: =#REF! ->  | BV13: =#REF! ->  | BW13: =#REF! ->  | BX13: =#REF! ->  | BY13: =#REF! ->  | BZ13: =#REF! ->  | CA13: =#REF! ->  | CB13: =#REF! ->  | CC13: =#REF! ->  | CD13: =#REF! ->  | CE13: =#REF! ->  | CF13: =#REF! ->  | CG13: =#REF! ->  | CH13: جملة كشف 7 | CI13: 0 | CK13: =IF($CI13>0,VLOOKUP($CI13,'العاملين '!$A$3:$CR$260,3),0) -> 0 | CL13: =IF($CI13>0,VLOOKUP($CI13,'العاملين '!$A$3:$CR$260,49),0) -> 0
A14: 0 | B14: استمارة6 | C14: =#REF! ->  | D14: =#REF! ->  | E14: =#REF! ->  | F14: =#REF! ->  | G14: =#REF! ->  | H14: =#REF! ->  | I14: =#REF! ->  | J14: =#REF! ->  | K14: =#REF! ->  | L14: =#REF! ->  | M14: =#REF! ->  | N14: =#REF! ->  | O14: =#REF! ->  | P14: =#REF! ->  | Q14: =#REF! ->  | R14: =#REF! ->  | S14: =#REF! ->  | T14: =#REF! ->  | U14: =#REF! ->  | V14: =#REF! ->  | W14: =#REF! ->  | X14: =#REF! ->  | Y14: =#REF! ->  | Z14: =#REF! ->  | AA14: =#REF! ->  | AB14: =#REF! ->  | AC14: =#REF! ->  | AD14: =#REF! ->  | AE14: =#REF! ->  | AF14: =#REF! ->  | AG14: =#REF! ->  | AH14: =#REF! ->  | AI14: =#REF! ->  | AJ14: =#REF! ->  | AK14: =#REF! ->  | AL14: =#REF! ->  | AM14: =#REF! ->  | AN14: =#REF! ->  | AO14: =#REF! ->  | AP14: =#REF! ->  | AQ14: =#REF! ->  | AR14: =#REF! ->  | AS14: =#REF! ->  | AT14: =#REF! ->  | AU14: =#REF! ->  | AV14: =#REF! ->  | AW14: =#REF! ->  | AX14: =#REF! ->  | AY14: =#REF! ->  | AZ14: =#REF! ->  | BA14: =#REF! ->  | BB14: =#REF! ->  | BC14: =#REF! ->  | BD14: =#REF! ->  | BE14: =#REF! ->  | BF14: =#REF! ->  | BG14: =#REF! ->  | BH14: =#REF! ->  | BI14: =#REF! ->  | BJ14: =#REF! ->  | BK14: =#REF! ->  | BL14: =#REF! ->  | BM14: =#REF! ->  | BN14: =#REF! ->  | BO14: =#REF! ->  | BP14: =#REF! ->  | BQ14: =#REF! ->  | BR14: =#REF! ->  | BS14: =#REF! ->  | BT14: =#REF! ->  | BU14: =#REF! ->  | BV14: =#REF! ->  | BW14: =#REF! ->  | BX14: =#REF! ->  | BY14: =#REF! ->  | BZ14: =#REF! ->  | CA14: =#REF! ->  | CB14: =#REF! ->  | CC14: =#REF! ->  | CD14: =#REF! ->  | CE14: =#REF! ->  | CF14: =#REF! ->  | CG14: =#REF! ->  | CH14: جملة كشف 6 | CI14: 0 | CK14: =IF($CI14>0,VLOOKUP($CI14,'العاملين '!$A$3:$CR$260,3),0) -> 0 | CL14: =IF($CI14>0,VLOOKUP($CI14,'العاملين '!$A$3:$CR$260,49),0) -> 0
A15: 0 | B15: استمارة5 | C15: =#REF! ->  | D15: =#REF! ->  | E15: =#REF! ->  | F15: =#REF! ->  | G15: =#REF! ->  | H15: =#REF! ->  | I15: =#REF! ->  | J15: =#REF! ->  | K15: =#REF! ->  | L15: =#REF! ->  | M15: =#REF! ->  | N15: =#REF! ->  | O15: =#REF! ->  | P15: =#REF! ->  | Q15: =#REF! ->  | R15: =#REF! ->  | S15: =#REF! ->  | T15: =#REF! ->  | U15: =#REF! ->  | V15: =#REF! ->  | W15: =#REF! ->  | X15: =#REF! ->  | Y15: =#REF! ->  | Z15: =#REF! ->  | AA15: =#REF! ->  | AB15: =#REF! ->  | AC15: =#REF! ->  | AD15: =#REF! ->  | AE15: =#REF! ->  | AF15: =#REF! ->  | AG15: =#REF! ->  | AH15: =#REF! ->  | AI15: =#REF! ->  | AJ15: =#REF! ->  | AK15: =#REF! ->  | AL15: =#REF! ->  | AM15: =#REF! ->  | AN15: =#REF! ->  | AO15: =#REF! ->  | AP15: =#REF! ->  | AQ15: =#REF! ->  | AR15: =#REF! ->  | AS15: =#REF! ->  | AT15: =#REF! ->  | AU15: =#REF! ->  | AV15: =#REF! ->  | AW15: =#REF! ->  | AX15: =#REF! ->  | AY15: =#REF! ->  | AZ15: =#REF! ->  | BA15: =#REF! ->  | BB15: =#REF! ->  | BC15: =#REF! ->  | BD15: =#REF! ->  | BE15: =#REF! ->  | BF15: =#REF! ->  | BG15: =#REF! ->  | BH15: =#REF! ->  | BI15: =#REF! ->  | BJ15: =#REF! ->  | BK15: =#REF! ->  | BL15: =#REF! ->  | BM15: =#REF! ->  | BN15: =#REF! ->  | BO15: =#REF! ->  | BP15: =#REF! ->  | BQ15: =#REF! ->  | BR15: =#REF! ->  | BS15: =#REF! ->  | BT15: =#REF! ->  | BU15: =#REF! ->  | BV15: =#REF! ->  | BW15: =#REF! ->  | BX15: =#REF! ->  | BY15: =#REF! ->  | BZ15: =#REF! ->  | CA15: =#REF! ->  | CB15: =#REF! ->  | CC15: =#REF! ->  | CD15: =#REF! ->  | CE15: =#REF! ->  | CF15: =#REF! ->  | CG15: =#REF! ->  | CH15: جملة كشف 5 | CI15: 0 | CK15: =IF($CI15>0,VLOOKUP($CI15,'العاملين '!$A$3:$CR$260,3),0) -> 0 | CL15: =IF($CI15>0,VLOOKUP($CI15,'العاملين '!$A$3:$CR$260,49),0) -> 0
A16: 0 | B16: استمارة4 | C16: =#REF! ->  | D16: =#REF! ->  | E16: =#REF! ->  | F16: =#REF! ->  | G16: =#REF! ->  | H16: =#REF! ->  | I16: =#REF! ->  | J16: =#REF! ->  | K16: =#REF! ->  | L16: =#REF! ->  | M16: =#REF! ->  | N16: =#REF! ->  | O16: =#REF! ->  | P16: =#REF! ->  | Q16: =#REF! ->  | R16: =#REF! ->  | S16: =#REF! ->  | T16: =#REF! ->  | U16: =#REF! ->  | V16: =#REF! ->  | W16: =#REF! ->  | X16: =#REF! ->  | Y16: =#REF! ->  | Z16: =#REF! ->  | AA16: =#REF! ->  | AB16: =#REF! ->  | AC16: =#REF! ->  | AD16: =#REF! ->  | AE16: =#REF! ->  | AF16: =#REF! ->  | AG16: =#REF! ->  | AH16: =#REF! ->  | AI16: =#REF! ->  | AJ16: =#REF! ->  | AK16: =#REF! ->  | AL16: =#REF! ->  | AM16: =#REF! ->  | AN16: =#REF! ->  | AO16: =#REF! ->  | AP16: =#REF! ->  | AQ16: =#REF! ->  | AR16: =#REF! ->  | AS16: =#REF! ->  | AT16: =#REF! ->  | AU16: =#REF! ->  | AV16: =#REF! ->  | AW16: =#REF! ->  | AX16: =#REF! ->  | AY16: =#REF! ->  | AZ16: =#REF! ->  | BA16: =#REF! ->  | BB16: =#REF! ->  | BC16: =#REF! ->  | BD16: =#REF! ->  | BE16: =#REF! ->  | BF16: =#REF! ->  | BG16: =#REF! ->  | BH16: =#REF! ->  | BI16: =#REF! ->  | BJ16: =#REF! ->  | BK16: =#REF! ->  | BL16: =#REF! ->  | BM16: =#REF! ->  | BN16: =#REF! ->  | BO16: =#REF! ->  | BP16: =#REF! ->  | BQ16: =#REF! ->  | BR16: =#REF! ->  | BS16: =#REF! ->  | BT16: =#REF! ->  | BU16: =#REF! ->  | BV16: =#REF! ->  | BW16: =#REF! ->  | BX16: =#REF! ->  | BY16: =#REF! ->  | BZ16: =#REF! ->  | CA16: =#REF! ->  | CB16: =#REF! ->  | CC16: =#REF! ->  | CD16: =#REF! ->  | CE16: =#REF! ->  | CF16: =#REF! ->  | CG16: =#REF! ->  | CH16: جملة كشف 4 | CI16: 0 | CK16: =IF($CI16>0,VLOOKUP($CI16,'العاملين '!$A$3:$CR$260,3),0) -> 0 | CL16: =IF($CI16>0,VLOOKUP($CI16,'العاملين '!$A$3:$CR$260,49),0) -> 0
A17: 0 | B17: استمارة3 | C17: =#REF! ->  | D17: =#REF! ->  | E17: =#REF! ->  | F17: =#REF! ->  | G17: =#REF! ->  | H17: =#REF! ->  | I17: =#REF! ->  | J17: =#REF! ->  | K17: =#REF! ->  | L17: =#REF! ->  | M17: =#REF! ->  | N17: =#REF! ->  | O17: =#REF! ->  | P17: =#REF! ->  | Q17: =#REF! ->  | R17: =#REF! ->  | S17: =#REF! ->  | T17: =#REF! ->  | U17: =#REF! ->  | V17: =#REF! ->  | W17: =#REF! ->  | X17: =#REF! ->  | Y17: =#REF! ->  | Z17: =#REF! ->  | AA17: =#REF! ->  | AB17: =#REF! ->  | AC17: =#REF! ->  | AD17: =#REF! ->  | AE17: =#REF! ->  | AF17: =#REF! ->  | AG17: =#REF! ->  | AH17: =#REF! ->  | AI17: =#REF! ->  | AJ17: =#REF! ->  | AK17: =#REF! ->  | AL17: =#REF! ->  | AM17: =#REF! ->  | AN17: =#REF! ->  | AO17: =#REF! ->  | AP17: =#REF! ->  | AQ17: =#REF! ->  | AR17: =#REF! ->  | AS17: =#REF! ->  | AT17: =#REF! ->  | AU17: =#REF! ->  | AV17: =#REF! ->  | AW17: =#REF! ->  | AX17: =#REF! ->  | AY17: =#REF! ->  | AZ17: =#REF! ->  | BA17: =#REF! ->  | BB17: =#REF! ->  | BC17: =#REF! ->  | BD17: =#REF! ->  | BE17: =#REF! ->  | BF17: =#REF! ->  | BG17: =#REF! ->  | BH17: =#REF! ->  | BI17: =#REF! ->  | BJ17: =#REF! ->  | BK17: =#REF! ->  | BL17: =#REF! ->  | BM17: =#REF! ->  | BN17: =#REF! ->  | BO17: =#REF! ->  | BP17: =#REF! ->  | BQ17: =#REF! ->  | BR17: =#REF! ->  | BS17: =#REF! ->  | BT17: =#REF! ->  | BU17: =#REF! ->  | BV17: =#REF! ->  | BW17: =#REF! ->  | BX17: =#REF! ->  | BY17: =#REF! ->  | BZ17: =#REF! ->  | CA17: =#REF! ->  | CB17: =#REF! ->  | CC17: =#REF! ->  | CD17: =#REF! ->  | CE17: =#REF! ->  | CF17: =#REF! ->  | CG17: =#REF! ->  | CH17: جملة كشف 3 | CI17: 0 | CK17: =IF($CI17>0,VLOOKUP($CI17,'العاملين '!$A$3:$CR$260,3),0) -> 0 | CL17: =IF($CI17>0,VLOOKUP($CI17,'العاملين '!$A$3:$CR$260,49),0) -> 0
A18: 0 | B18: استمارة2 | C18: =#REF! ->  | D18: =#REF! ->  | E18: =#REF! ->  | F18: =#REF! ->  | G18: =#REF! ->  | H18: =#REF! ->  | I18: =#REF! ->  | J18: =#REF! ->  | K18: =#REF! ->  | L18: =#REF! ->  | M18: =#REF! ->  | N18: =#REF! ->  | O18: =#REF! ->  | P18: =#REF! ->  | Q18: =#REF! ->  | R18: =#REF! ->  | S18: =#REF! ->  | T18: =#REF! ->  | U18: =#REF! ->  | V18: =#REF! ->  | W18: =#REF! ->  | X18: =#REF! ->  | Y18: =#REF! ->  | Z18: =#REF! ->  | AA18: =#REF! ->  | AB18: =#REF! ->  | AC18: =#REF! ->  | AD18: =#REF! ->  | AE18: =#REF! ->  | AF18: =#REF! ->  | AG18: =#REF! ->  | AH18: =#REF! ->  | AI18: =#REF! ->  | AJ18: =#REF! ->  | AK18: =#REF! ->  | AL18: =#REF! ->  | AM18: =#REF! ->  | AN18: =#REF! ->  | AO18: =#REF! ->  | AP18: =#REF! ->  | AQ18: =#REF! ->  | AR18: =#REF! ->  | AS18: =#REF! ->  | AT18: =#REF! ->  | AU18: =#REF! ->  | AV18: =#REF! ->  | AW18: =#REF! ->  | AX18: =#REF! ->  | AY18: =#REF! ->  | AZ18: =#REF! ->  | BA18: =#REF! ->  | BB18: =#REF! ->  | BC18: =#REF! ->  | BD18: =#REF! ->  | BE18: =#REF! ->  | BF18: =#REF! ->  | BG18: =#REF! ->  | BH18: =#REF! ->  | BI18: =#REF! ->  | BJ18: =#REF! ->  | BK18: =#REF! ->  | BL18: =#REF! ->  | BM18: =#REF! ->  | BN18: =#REF! ->  | BO18: =#REF! ->  | BP18: =#REF! ->  | BQ18: =#REF! ->  | BR18: =#REF! ->  | BS18: =#REF! ->  | BT18: =#REF! ->  | BU18: =#REF! ->  | BV18: =#REF! ->  | BW18: =#REF! ->  | BX18: =#REF! ->  | BY18: =#REF! ->  | BZ18: =#REF! ->  | CA18: =#REF! ->  | CB18: =#REF! ->  | CC18: =#REF! ->  | CD18: =#REF! ->  | CE18: =#REF! ->  | CF18: =#REF! ->  | CG18: =#REF! ->  | CH18: جملة كشف 2 | CI18: 0 | CK18: =IF($CI18>0,VLOOKUP($CI18,'العاملين '!$A$3:$CR$260,3),0) -> 0 | CL18: =IF($CI18>0,VLOOKUP($CI18,'العاملين '!$A$3:$CR$260,49),0) -> 0
A19: 0 | B19: استمارة1 | C19: =#REF! ->  | D19: =#REF! ->  | E19: =#REF! ->  | F19: =#REF! ->  | G19: =#REF! ->  | H19: =#REF! ->  | I19: =#REF! ->  | J19: =#REF! ->  | K19: =#REF! ->  | L19: =#REF! ->  | M19: =#REF! ->  | N19: =#REF! ->  | O19: =#REF! ->  | P19: =#REF! ->  | Q19: =#REF! ->  | R19: =#REF! ->  | S19: =#REF! ->  | T19: =#REF! ->  | U19: =#REF! ->  | V19: =#REF! ->  | W19: =#REF! ->  | X19: =#REF! ->  | Y19: =#REF! ->  | Z19: =#REF! ->  | AA19: =#REF! ->  | AB19: =#REF! ->  | AC19: =#REF! ->  | AD19: =#REF! ->  | AE19: =#REF! ->  | AF19: =#REF! ->  | AG19: =#REF! ->  | AH19: =#REF! ->  | AI19: =#REF! ->  | AJ19: =#REF! ->  | AK19: =#REF! ->  | AL19: =#REF! ->  | AM19: =#REF! ->  | AN19: =#REF! ->  | AO19: =#REF! ->  | AP19: =#REF! ->  | AQ19: =#REF! ->  | AR19: =#REF! ->  | AS19: =#REF! ->  | AT19: =#REF! ->  | AU19: =#REF! ->  | AV19: =#REF! ->  | AW19: =#REF! ->  | AX19: =#REF! ->  | AY19: =#REF! ->  | AZ19: =#REF! ->  | BA19: =#REF! ->  | BB19: =#REF! ->  | BC19: =#REF! ->  | BD19: =#REF! ->  | BE19: =#REF! ->  | BF19: =#REF! ->  | BG19: =#REF! ->  | BH19: =#REF! ->  | BI19: =#REF! ->  | BJ19: =#REF! ->  | BK19: =#REF! ->  | BL19: =#REF! ->  | BM19: =#REF! ->  | BN19: =#REF! ->  | BO19: =#REF! ->  | BP19: =#REF! ->  | BQ19: =#REF! ->  | BR19: =#REF! ->  | BS19: =#REF! ->  | BT19: =#REF! ->  | BU19: =#REF! ->  | BV19: =#REF! ->  | BW19: =#REF! ->  | BX19: =#REF! ->  | BY19: =#REF! ->  | BZ19: =#REF! ->  | CA19: =#REF! ->  | CB19: =#REF! ->  | CC19: =#REF! ->  | CD19: =#REF! ->  | CE19: =#REF! ->  | CF19: =#REF! ->  | CG19: =#REF! ->  | CH19: جملة كشف 1 | CI19: 0 | CK19: =IF($CI19>0,VLOOKUP($CI19,'العاملين '!$A$3:$CR$260,3),0) -> 0 | CL19: =IF($CI19>0,VLOOKUP($CI19,'العاملين '!$A$3:$CR$260,49),0) -> 0
A20: 0 | B20: الاداريون | C20: =#REF! ->  | D20: =#REF! ->  | E20: =#REF! ->  | F20: =#REF! ->  | G20: =#REF! ->  | H20: =#REF! ->  | AI20: =#REF! ->  | AJ20: =#REF! ->  | AK20: =#REF! ->  | AP20: =#REF! ->  | AQ20: =#REF! ->  | AR20: =#REF! ->  | AS20: =#REF! ->  | AT20: =#REF! ->  | AU20: =#REF! ->  | AV20: =#REF! ->  | AY20: =#REF! ->  | AZ20: =#REF! ->  | BA20: =#REF! ->  | BB20: =#REF! ->  | BD20: =#REF! ->  | BE20: =#REF! ->  | BF20: =#REF! ->  | BG20: =#REF! ->  | BH20: =#REF! ->  | BI20: =#REF! ->  | BJ20: =#REF! ->  | BK20: =#REF! ->  | BL20: =#REF! ->  | BM20: =#REF! ->  | BN20: =#REF! ->  | BO20: =#REF! ->  | BP20: =#REF! ->  | BQ20: =#REF! ->  | BR20: =#REF! ->  | BS20: =#REF! ->  | BT20: =#REF! ->  | BW20: =#REF! ->  | CB20: =#REF! ->  | CC20: =#REF! ->  | CE20: =#REF! ->  | CF20: =#REF! ->  | CG20: =#REF! ->  | CH20: جملة الاداريين | CI20: 0 | CK20: =IF($CI20>0,VLOOKUP($CI20,'العاملين '!$A$3:$CR$260,3),0) -> 0 | CL20: =IF($CI20>0,VLOOKUP($CI20,'العاملين '!$A$3:$CR$260,49),0) -> 0
A21: 0 | B21: الجملة | C21: =SUM(C10:C25) ->  | AI21: =SUM(AI10:AI25) ->  | BO21: =SUM(BO10:BO25) -> 
A22: 0 | CF22: يعتمد مدير المدرسة | CH22: =ورقة1!C4 -> محمد
A23: 0 | C23: مسئول الماهيات | E23: =ورقة1!C6 -> 0 | CK23: =IF($CI23>0,VLOOKUP($CI23,'العاملين '!$A$3:$CR$260,3),0) -> 0 | CL23: =IF($CI23>0,VLOOKUP($CI23,'العاملين '!$A$3:$CR$260,49),0) -> 0 | CM23: =AY23-SUM(AZ23:CD23) -> 0
CK25: =IF($CI25>0,VLOOKUP($CI25,'العاملين '!$A$3:$CR$260,3),0) -> 0 | CL25: =IF($CI25>0,VLOOKUP($CI25,'العاملين '!$A$3:$CR$260,49),0) -> 0 | CM25: 0
